{"text_format":"1","workbook":"xlsx","n_sheets":6,"sheets":["Solicitud","Listas","Cotización","Catalogo Precios","Catálogo Localización","CSV"],"not_rendered":{"charts":0,"images":6,"macros":1,"external_links":5,"defined_names":53,"comments":0,"pivot_tables":0},"unopened":[],"bounds":{"document_bytes":16777216,"sheet_cells":100000,"rows_first":2000,"rows_last":500,"rows_between":2000,"halvings":0,"cell_chars":16384,"cell_head_chars":4096},"cells_cut":0,"cells_raw":0,"read":"whole","date_system":"1900"}

{"sheet":"Solicitud","index":0,"n_rows":48,"n_cols":19,"rows_kept":48,"cut":false,"hidden":false,"merged":[[1,3,1,11],[0,1,0,12],[2,1,2,12],[4,1,4,2],[8,10,8,11],[10,8,10,9],[4,3,4,7],[4,10,4,12],[6,1,6,2],[6,3,6,7],[6,10,6,12],[4,8,4,9],[6,8,6,9],[8,8,8,9],[10,10,10,12],[8,1,8,2],[8,3,8,7],[10,1,10,2],[10,3,10,7],[26,2,26,11],[27,2,30,11],[21,2,24,11],[12,1,12,12],[20,2,20,11],[18,1,18,3],[14,1,14,3],[14,5,14,6],[18,5,18,6],[14,8,14,9],[14,10,14,11],[16,1,16,3],[16,5,16,6],[16,8,16,9],[16,10,16,11],[43,2,43,4],[43,5,43,7],[44,5,44,7],[44,2,44,4],[32,1,32,12],[40,2,40,3],[35,8,35,9],[42,1,42,7],[36,8,36,10]]}
[null,"SOLICITUD DE COTIZACIÓN"]
[null,"Versión 12","2024-07-19","Servicios Postales de Pago"]
[null,"Información de la Entidad Compradora"]
[]
[null,"Nombre de la Entidad:",null,null,null,null,null,null,"NIT:"]
[]
[null,"Dirección de la Entidad:",null,null,null,null,null,null,"Correo de contacto:"]
[]
[null,"Municipio / Dirección:",null,null,null,null,null,null,"Teléfono de contacto:"]
[]
[null,"Fecha Creación del evento:",null,null,null,null,null,null,"Nombre funcionario Comprador:",null,null,null,null,null,null,null,null,null,"Cuenta de Ahorro Electrónica"]
[null,null,null,null,null,null,null,null,null,null,null,null,null,null,null,null,null,null,"Cuenta Tradicional"]
[null,"Solicitud de Cotización",null,null,null,null,null,null,null,null,null,null,null,null,null,null,null,null,"Deposito electrónico"]
[null,null,null,null,null,null,null,null,null,null,null,null,null,null,null,null,null,null,"Cuentas de Ahorro de Tramite Simplificado"]
[null,"Fecha estimada de inicio OC:",null,null,null,"Fecha de vencimiento OC:",null,null,"Plazo máximo de  enrolamiento:"]
[]
[null,"Frecuencia estimada de pagos al año (meses):",null,null,null,"Valor estimado a pagar en cada frecuencia:",null,null,"¿Se debe incluir IVA?\nExención de IVA por programa social del Gobierno Nacional (Ley 1943 del 28 de diciembre de 2019)"]
[]
[null,"Valor estimado máximo a pagar a cada beneficiario:",null,null,null,"Presupuesto máximo de la entidad compradora:"]
[]
[null,null,"Plazo máximo Enrolamiento:"]
[]
[]
[]
[]
[]
[null,null,"Observaciones generales:"]
[]
[]
[]
[]
[]
[null,"Paquete de Servicios"]
[]
[null,null,null,null,null,null,null,null,"Filas a agregar o eliminar:"]
[null,null,null,"Máximo de filas:",1000000,null,null,null,1]
[null,null,null,null,null,null,null,null,"Tipo de Servicio Postal de Pago (Marque X)"]
[null,"Item","Código DANE","Departamento","Municipio","Número Estimado de Beneficiarios","Cantidad de Transferencias a realizar","Total cantidad estimada de transferencia","Entrega del incentivo en los corresponsales, oficinas, cajas extendidas y otros aliados","Entrega directa de efectivo al Beneficiario en las cabeceras distritales y municipales fuera de las instalaciones de los Operadores Postales de Pago","Entrega directa de efectivo al Beneficiario en zona rural fuera de las instalaciones de los Operadores Postales de Pago"]
[null,1,null,null,null,null,null,{"$f":"F39*G39","v":0}]
[]
[null,null,null,null,1,null,"Total transferencias: ",{"$f":"SUM(H27:H39)","v":0}]
[]
[null,"Tarifas adicionales para los Beneficiarios"]
[null,"No","Nombre del servicio",null,null,"Descripción"]
[null,1]
[]
[null,null,null,"Filas a agregar o eliminar tarifas:"]
[null,null,null,1]

{"sheet":"Listas","index":1,"n_rows":126,"n_cols":34,"rows_kept":126,"cut":false,"hidden":true,"merged":[]}
["DPTO","AMAZONAS","ANTIOQUIA","ARAUCA","ATLANTICO","BOGOTA","BOLIVAR","BOYACA","CALDAS","CAQUETA","CASANARE","CAUCA","CESAR","CHOCO","CORDOBA","CUNDINAMARCA","GUAINIA","GUAVIARE","HUILA","LAGUAJIRA","MAGDALENA","META","N.DESANTANDER","NARIÑO","PUTUMAYO","QUINDIO","RISARALDA","SANANDRES","SANTANDER","SUCRE","TOLIMA","VALLEDELCAUCA","VAUPES","VICHADA"]
["AMAZONAS","EL ENCANTO","ABEJORRAL","ARAUCA","BARANOA","BOGOTA, D.C.","ACHI","ALMEIDA","AGUADAS","ALBANIA","AGUAZUL","ALMAGUER","AGUACHICA","ACANDI","AYAPEL","AGUA DE DIOS","BARRANCO MINAS","CALAMAR","ACEVEDO","ALBANIA","ALGARROBO","ACACIAS","ABREGO","ALBAN","COLON","ARMENIA","APIA","PROVIDENCIA","AGUADA","BUENAVISTA","ALPUJARRA","ALCALA","CARURU","CUMARIBO"]
["ANTIOQUIA","LA CHORRERA","ABRIAQUI","ARAUQUITA","BARRANQUILLA",null,"ALTOS DEL ROSARIO","AQUITANIA","ANSERMA","BELEN DE LOS ANDAQUIES","CHAMEZA","ARGELIA","AGUSTIN CODAZZI","ALTO BAUDO","BUENAVISTA","ALBAN","CACAHUAL","EL RETORNO","AGRADO","BARRANCAS","ARACATACA","BARRANCA DE UPIA","ARBOLEDAS","ALDANA","LEGUIZAMO","BUENAVISTA","BALBOA","SAN ANDRES","ALBANIA","CAIMITO","ALVARADO","ANDALUCIA","MITU","LA PRIMAVERA"]
["ARAUCA","LA PEDRERA","ALEJANDRIA","CRAVO NORTE","CAMPO DE LA CRUZ",null,"ARENAL","ARCABUCO","ARANZAZU","CARTAGENA DEL CHAIRA","HATO COROZAL","BALBOA","ASTREA","ATRATO","CANALETE","ANAPOIMA","INIRIDA","MIRAFLORES","AIPE","DIBULLA","ARIGUANI","CABUYARO","BOCHALEMA","ANCUYA","MOCOA","CALARCA","BELEN DE UMBRIA",null,"ARATOCA","CHALAN","AMBALEMA","ANSERMANUEVO","PACOA","PUERTO CARREÑO"]
["ATLANTICO","LA VICTORIA","AMAGA","FORTUL","CANDELARIA",null,"ARJONA","BELEN","BELALCAZAR","CURILLO","LA SALINA","BOLIVAR","BECERRIL","BAGADO","CERETE","ANOLAIMA","LA GUADALUPE","SAN JOSE DEL GUAVIARE","ALGECIRAS","DISTRACCION","CERRO SAN ANTONIO","CASTILLA LA NUEVA","BUCARASICA","ARBOLEDA","ORITO","CIRCASIA","DOSQUEBRADAS",null,"BARBOSA","COLOSO","ANZOATEGUI","ARGELIA","PAPUNAUA","SANTA ROSALIA"]
["BOGOTA","LETICIA","AMALFI","PUERTO RONDON","GALAPA",null,"ARROYOHONDO","BERBEO","CHINCHINA","EL DONCELLO","MANI","BUENOS AIRES","BOSCONIA","BAHIA SOLANO","CHIMA","APULO","MAPIRIPANA",null,"ALTAMIRA","EL MOLINO","CHIBOLO","CUBARRAL","CACHIRA","BARBACOAS","PUERTO ASIS","CORDOBA","GUATICA",null,"BARICHARA","COROZAL","ARMERO","BOLIVAR","TARAIRA"]
["BOLIVAR","MIRITI - PARANA","ANDES","SARAVENA","JUAN DE ACOSTA",null,"BARRANCO DE LOBA","BETEITIVA","FILADELFIA","EL PAUJIL","MONTERREY","CAJIBIO","CHIMICHAGUA","BAJO BAUDO","CHINU","ARBELAEZ","MORICHAL",null,"BARAYA","FONSECA","CIENAGA","CUMARAL","CACOTA","BELEN","PUERTO CAICEDO","FILANDIA","LA CELIA",null,"BARRANCABERMEJA","COVEÑAS","ATACO","BUENAVENTURA","YAVARATE"]
["BOYACA","PUERTO ALEGRIA","ANGELOPOLIS","TAME","LURUACO",null,"CALAMAR","BOAVITA","LA DORADA","FLORENCIA","NUNCHIA","CALDONO","CHIRIGUANA","BOJAYA","CIENAGA DE ORO","BELTRAN","PANA PANA",null,"CAMPOALEGRE","HATONUEVO","CONCORDIA","EL CALVARIO","CHINACOTA","BUESACO","PUERTO GUZMAN","GENOVA","LA VIRGINIA",null,"BETULIA","EL ROBLE","CAJAMARCA","BUGALAGRANDE"]
["CALDAS","PUERTO ARICA","ANGOSTURA",null,"MALAMBO",null,"CANTAGALLO","BOYACA","LA MERCED","LA MONTAÑITA","OROCUE","CALOTO","CURUMANI","CARMEN DEL DARIEN","COTORRA","BITUIMA","PUERTO COLOMBIA",null,"COLOMBIA","LA JAGUA DEL PILAR","EL BANCO","EL CASTILLO","CHITAGA","CHACHAGsI","SAN FRANCISCO","LA TEBAIDA","MARSELLA",null,"BOLIVAR","GALERAS","CARMEN DE APICALA","CAICEDONIA"]
["CAQUETA","PUERTO NARIÑO","ANORI",null,"MANATI",null,"CARTAGENA","BRICEÑO","MANIZALES","MILAN","PAZ DE ARIPORO","CORINTO","EL COPEY","CERTEGUI","LA APARTADA","BOJACA","SAN FELIPE",null,"ELIAS","MAICAO","EL PIÑON","EL DORADO","CONVENCION","COLON","SAN MIGUEL","MONTENEGRO","MISTRATO",null,"BUCARAMANGA","GUARANDA","CASABIANCA","CALI"]
["CASANARE","PUERTO SANTANDER","ANZA",null,"PALMAR DE VARELA",null,"CICUCO","BUENAVISTA","MANZANARES","MORELIA","PORE","EL TAMBO","EL PASO","CONDOTO","LORICA","CABRERA",null,null,"GARZON","MANAURE","EL RETEN","FUENTE DE ORO","CUCUTA","CONSACA","SANTIAGO","PIJAO","PEREIRA",null,"CABRERA","LA UNION","CHAPARRAL","CALIMA"]
["CAUCA","TARAPACA","APARTADO",null,"PIOJO",null,"CLEMENCIA","BUSBANZA","MARMATO","PUERTO RICO","RECETOR","FLORENCIA","GAMARRA","EL CANTON DEL SAN PABLO","LOS CORDOBAS","CACHIPAY",null,null,"GIGANTE","RIOHACHA","FUNDACION","GRANADA","CUCUTILLA","CONTADERO","SIBUNDOY","QUIMBAYA","PUEBLO RICO",null,"CALIFORNIA","LOS PALMITOS","COELLO","CANDELARIA"]
["CESAR",null,"ARBOLETES",null,"POLONUEVO",null,"CORDOBA","CALDAS","MARQUETALIA","SAN JOSE DEL FRAGUA","SABANALARGA","GUACHENE","GONZALEZ","EL CARMEN DE ATRATO","MOMIL","CAJICA",null,null,"GUADALUPE","SAN JUAN DEL CESAR","GUAMAL","GUAMAL","DURANIA","CORDOBA","VALLE DEL GUAMUEZ","SALENTO","QUINCHIA",null,"CAPITANEJO","MAJAGUAL","COYAIMA","CARTAGO"]
["CHOCO",null,"ARGELIA",null,"PONEDERA",null,"EL CARMEN DE BOLIVAR","CAMPOHERMOSO","MARULANDA","SAN VICENTE DEL CAGUAN","SACAMA","GUAPI","LA GLORIA","EL LITORAL DEL SAN JUAN","MONTELIBANO","CAPARRAPI",null,null,"HOBO","URIBIA","NUEVA GRANADA","LA MACARENA","EL CARMEN","CUASPUD","VILLAGARZON",null,"SANTA ROSA DE CABAL",null,"CARCASI","MORROA","CUNDAY","DAGUA"]
["CORDOBA",null,"ARMENIA",null,"PUERTO COLOMBIA",null,"EL GUAMO","CERINZA","NEIRA","SOLANO","SAN LUIS DE PALENQUE","INZA","LA JAGUA DE IBIRICO","ISTMINA","MONTERIA","CAQUEZA",null,null,"IQUIRA","URUMITA","PEDRAZA","LEJANIAS","EL TARRA","CUMBAL",null,null,"SANTUARIO",null,"CEPITA","OVEJAS","DOLORES","EL AGUILA"]
["CUNDINAMARCA",null,"BARBOSA",null,"REPELON",null,"EL PEÑON","CHINAVITA","NORCASIA","SOLITA","TAMARA","JAMBALO","LA PAZ","JURADO","MOÑITOS","CARMEN DE CARUPA",null,null,"ISNOS","VILLANUEVA","PIJIÑO DEL CARMEN","MAPIRIPAN","EL ZULIA","CUMBITARA",null,null,null,null,"CERRITO","PALMITO","ESPINAL","EL CAIRO"]
["GUAINIA",null,"BELLO",null,"SABANAGRANDE",null,"HATILLO DE LOBA","CHIQUINQUIRA","PACORA","VALPARAISO","TAURAMENA","LA SIERRA","MANAURE","LLORO","PLANETA RICA","CHAGUANI",null,null,"LA ARGENTINA",null,"PIVIJAY","MESETAS","GRAMALOTE","EL CHARCO",null,null,null,null,"CHARALA","SAMPUES","FALAN","EL CERRITO"]
["GUAVIARE",null,"BELMIRA",null,"SABANALARGA",null,"MAGANGUE","CHIQUIZA","PALESTINA",null,"TRINIDAD","LA VEGA","PAILITAS","MEDIO ATRATO","PUEBLO NUEVO","CHIA",null,null,"LA PLATA",null,"PLATO","PUERTO CONCORDIA","HACARI","EL PEÑOL",null,null,null,null,"CHARTA","SAN BENITO ABAD","FLANDES","EL DOVIO"]
["HUILA",null,"BETANIA",null,"SANTA LUCIA",null,"MAHATES","CHISCAS","PENSILVANIA",null,"VILLANUEVA","LOPEZ","PELAYA","MEDIO BAUDO","PUERTO ESCONDIDO","CHIPAQUE",null,null,"NATAGA",null,"PUEBLOVIEJO","PUERTO GAITAN","HERRAN","EL ROSARIO",null,null,null,null,"CHIMA","SAN JUAN DE BETULIA","FRESNO","FLORIDA"]
["LA GUAJIRA",null,"BETULIA",null,"SANTO TOMAS",null,"MARGARITA","CHITA","RIOSUCIO",null,"YOPAL","MERCADERES","PUEBLO BELLO","MEDIO SAN JUAN","PUERTO LIBERTADOR","CHOACHI",null,null,"NEIVA",null,"REMOLINO","PUERTO LLERAS","LA ESPERANZA","EL TABLON DE GOMEZ",null,null,null,null,"CHIPATA","SAN LUIS DE SINCE","GUAMO","GINEBRA"]
["MAGDALENA",null,"BRICEÑO",null,"SOLEDAD",null,"MARIA LA BAJA","CHITARAQUE","RISARALDA",null,null,"MIRANDA","RIO DE ORO","NOVITA","PURISIMA","CHOCONTA",null,null,"OPORAPA",null,"SABANAS DE SAN ANGEL","PUERTO LOPEZ","LA PLAYA","EL TAMBO",null,null,null,null,"CIMITARRA","SAN MARCOS","HERVEO","GUACARI"]
["META",null,"BURITICA",null,"SUAN",null,"MOMPOS","CHIVATA","SALAMINA",null,null,"MORALES","SAN ALBERTO","NUQUI","SAHAGUN","COGUA",null,null,"PAICOL",null,"SALAMINA","PUERTO RICO","LABATECA","FRANCISCO PIZARRO",null,null,null,null,"CONCEPCION","SAN ONOFRE","HONDA","GUADALAJARA DE BUGA"]
["N. DE SANTANDER",null,"CACERES",null,"TUBARA",null,"MONTECRISTO","CHIVOR","SAMANA",null,null,"PADILLA","SAN DIEGO","QUIBDO","SAN ANDRES SOTAVENTO","COTA",null,null,"PALERMO",null,"SAN SEBASTIAN DE BUENAVISTA","RESTREPO","LOS PATIOS","FUNES",null,null,null,null,"CONFINES","SAN PEDRO","IBAGUE","JAMUNDI"]
["NARIÑO",null,"CAICEDO",null,"USIACURI",null,"MORALES","CIENEGA","SAN JOSE",null,null,"PAEZ","SAN MARTIN","RIO IRO","SAN ANTERO","CUCUNUBA",null,null,"PALESTINA",null,"SAN ZENON","SAN CARLOS DE GUAROA","LOURDES","GUACHUCAL",null,null,null,null,"CONTRATACION","SANTIAGO DE TOLU","ICONONZO","LA CUMBRE"]
["PUTUMAYO",null,"CALDAS",null,null,null,"NOROSI","COMBITA","SUPIA",null,null,"PATIA","TAMALAMEQUE","RIO QUITO","SAN BERNARDO DEL VIENTO","EL COLEGIO",null,null,"PITAL",null,"SANTA ANA","SAN JUAN DE ARAMA","MUTISCUA","GUAITARILLA",null,null,null,null,"COROMORO","SINCELEJO","LERIDA","LA UNION"]
["QUINDIO",null,"CAMPAMENTO",null,null,null,"PINILLOS","COPER","VICTORIA",null,null,"PIAMONTE","VALLEDUPAR","RIOSUCIO","SAN CARLOS","EL PEÑON",null,null,"PITALITO",null,"SANTA BARBARA DE PINTO","SAN JUANITO","OCAÑA","GUALMATAN",null,null,null,null,"CURITI","SUCRE","LIBANO","LA VICTORIA"]
["RISARALDA",null,"CAÑASGORDAS",null,null,null,"REGIDOR","CORRALES","VILLAMARIA",null,null,"PIENDAMO",null,"SAN JOSE DEL PALMAR","SAN PELAYO","EL ROSAL",null,null,"RIVERA",null,"SANTA MARTA","SAN MARTIN","PAMPLONA","ILES",null,null,null,null,"EL CARMEN DE CHUCURI","TOLU VIEJO","MARIQUITA","OBANDO"]
["SAN ANDRES",null,"CARACOLI",null,null,null,"RIO VIEJO","COVARACHIA","VITERBO",null,null,"POPAYAN",null,"SIPI","TIERRALTA","FACATATIVA",null,null,"SALADOBLANCO",null,"SITIONUEVO","URIBE","PAMPLONITA","IMUES",null,null,null,null,"EL GUACAMAYO",null,"MELGAR","PALMIRA"]
["SANTANDER",null,"CARAMANTA",null,null,null,"SAN CRISTOBAL","CUBARA",null,null,null,"PUERTO TEJADA",null,"TADO","VALENCIA","FOMEQUE",null,null,"SAN AGUSTIN",null,"TENERIFE","VILLAVICENCIO","PUERTO SANTANDER","IPIALES",null,null,null,null,"EL PEÑON",null,"MURILLO","PRADERA"]
["SUCRE",null,"CAREPA",null,null,null,"SAN ESTANISLAO","CUCAITA",null,null,null,"PURACE",null,"UNGUIA","SAN JOSE DE URE","FOSCA",null,null,"SANTA MARIA",null,"ZAPAYAN","VISTAHERMOSA","RAGONVALIA","LA CRUZ",null,null,null,null,"EL PLAYON",null,"NATAGAIMA","RESTREPO"]
["TOLIMA",null,"CAROLINA",null,null,null,"SAN FERNANDO","CUITIVA",null,null,null,"ROSAS",null,"UNION PANAMERICANA","TUCHIN","FUNZA",null,null,"SUAZA",null,"ZONA BANANERA",null,"SALAZAR","LA FLORIDA",null,null,null,null,"ENCINO",null,"ORTEGA","RIOFRIO"]
["VALLE DEL CAUCA",null,"CAUCASIA",null,null,null,"SAN JACINTO","DUITAMA",null,null,null,"SAN SEBASTIAN",null,null,null,"FUQUENE",null,null,"TARQUI",null,null,null,"SAN CALIXTO","LA LLANADA",null,null,null,null,"ENCISO",null,"PALOCABILDO","ROLDANILLO"]
["VAUPES",null,"CHIGORODO",null,null,null,"SAN JACINTO DEL CAUCA","EL COCUY",null,null,null,"SANTA ROSA",null,null,null,"FUSAGASUGA",null,null,"TELLO",null,null,null,"SAN CAYETANO","LA TOLA",null,null,null,null,"FLORIAN",null,"PIEDRAS","SAN PEDRO"]
["VICHADA",null,"CISNEROS",null,null,null,"SAN JUAN NEPOMUCENO","EL ESPINO",null,null,null,"SANTANDER DE QUILICHAO",null,null,null,"GACHALA",null,null,"TERUEL",null,null,null,"SANTIAGO","LA UNION",null,null,null,null,"FLORIDABLANCA",null,"PLANADAS","SEVILLA"]
[null,null,"CIUDAD BOLIVAR",null,null,null,"SAN MARTIN DE LOBA","FIRAVITOBA",null,null,null,"SILVIA",null,null,null,"GACHANCIPA",null,null,"TESALIA",null,null,null,"SARDINATA","LEIVA",null,null,null,null,"GALAN",null,"PRADO","TORO"]
[null,null,"COCORNA",null,null,null,"SAN PABLO","FLORESTA",null,null,null,"SOTARA",null,null,null,"GACHETA",null,null,"TIMANA",null,null,null,"SILOS","LINARES",null,null,null,null,"GAMBITA",null,"PURIFICACION","TRUJILLO"]
[null,null,"CONCEPCION",null,null,null,"SANTA CATALINA","GACHANTIVA",null,null,null,"SUAREZ",null,null,null,"GAMA",null,null,"VILLAVIEJA",null,null,null,"TEORAMA","LOS ANDES",null,null,null,null,"GIRON",null,"RIOBLANCO","TULUA"]
[null,null,"CONCORDIA",null,null,null,"SANTA ROSA","GAMEZA",null,null,null,"SUCRE",null,null,null,"GIRARDOT",null,null,"YAGUARA",null,null,null,"TIBU","MAGsI",null,null,null,null,"GsEPSA",null,"RONCESVALLES","ULLOA"]
[null,null,"COPACABANA",null,null,null,"SANTA ROSA DEL SUR","GARAGOA",null,null,null,"TIMBIO",null,null,null,"GRANADA",null,null,null,null,null,null,"TOLEDO","MALLAMA",null,null,null,null,"GUACA",null,"ROVIRA","VERSALLES"]
[null,null,"DABEIBA",null,null,null,"SIMITI","GsICAN",null,null,null,"TIMBIQUI",null,null,null,"GUACHETA",null,null,null,null,null,null,"VILLA CARO","MOSQUERA",null,null,null,null,"GUADALUPE",null,"SALDAÑA","VIJES"]
[null,null,"DON MATIAS",null,null,null,"SOPLAVIENTO","GUACAMAYAS",null,null,null,"TORIBIO",null,null,null,"GUADUAS",null,null,null,null,null,null,"VILLA DEL ROSARIO","NARIÑO",null,null,null,null,"GUAPOTA",null,"SAN ANTONIO","YOTOCO"]
[null,null,"EBEJICO",null,null,null,"TALAIGUA NUEVO","GUATEQUE",null,null,null,"TOTORO",null,null,null,"GUASCA",null,null,null,null,null,null,null,"OLAYA HERRERA",null,null,null,null,"GUAVATA",null,"SAN LUIS","YUMBO"]
[null,null,"EL BAGRE",null,null,null,"TIQUISIO","GUAYATA",null,null,null,"VILLA RICA",null,null,null,"GUATAQUI",null,null,null,null,null,null,null,"OSPINA",null,null,null,null,"HATO",null,"SANTA ISABEL","ZARZAL"]
[null,null,"EL CARMEN DE VIBORAL",null,null,null,"TURBACO","IZA",null,null,null,null,null,null,null,"GUATAVITA",null,null,null,null,null,null,null,"PASTO",null,null,null,null,"JESUS MARIA",null,"SUAREZ"]
[null,null,"EL SANTUARIO",null,null,null,"TURBANA","JENESANO",null,null,null,null,null,null,null,"GUAYABAL DE SIQUIMA",null,null,null,null,null,null,null,"POLICARPA",null,null,null,null,"JORDAN",null,"VALLE DE SAN JUAN"]
[null,null,"ENTRERRIOS",null,null,null,"VILLANUEVA","JERICO",null,null,null,null,null,null,null,"GUAYABETAL",null,null,null,null,null,null,null,"POTOSI",null,null,null,null,"LA BELLEZA",null,"VENADILLO"]
[null,null,"ENVIGADO",null,null,null,"ZAMBRANO","LA CAPILLA",null,null,null,null,null,null,null,"GUTIERREZ",null,null,null,null,null,null,null,"PROVIDENCIA",null,null,null,null,"LA PAZ",null,"VILLAHERMOSA"]
[null,null,"FREDONIA",null,null,null,null,"LA UVITA",null,null,null,null,null,null,null,"JERUSALEN",null,null,null,null,null,null,null,"PUERRES",null,null,null,null,"LANDAZURI",null,"VILLARRICA"]
[null,null,"FRONTINO",null,null,null,null,"LA VICTORIA",null,null,null,null,null,null,null,"JUNIN",null,null,null,null,null,null,null,"PUPIALES",null,null,null,null,"LEBRIJA"]
[null,null,"GIRALDO",null,null,null,null,"LABRANZAGRANDE",null,null,null,null,null,null,null,"LA CALERA",null,null,null,null,null,null,null,"RICAURTE",null,null,null,null,"LOS SANTOS"]
[null,null,"GIRARDOTA",null,null,null,null,"MACANAL",null,null,null,null,null,null,null,"LA MESA",null,null,null,null,null,null,null,"ROBERTO PAYAN",null,null,null,null,"MACARAVITA"]
[null,null,"GOMEZ PLATA",null,null,null,null,"MARIPI",null,null,null,null,null,null,null,"LA PALMA",null,null,null,null,null,null,null,"SAMANIEGO",null,null,null,null,"MALAGA"]
[null,null,"GRANADA",null,null,null,null,"MIRAFLORES",null,null,null,null,null,null,null,"LA PEÑA",null,null,null,null,null,null,null,"SAN ANDRES DE TUMACO",null,null,null,null,"MATANZA"]
[null,null,"GUADALUPE",null,null,null,null,"MONGUA",null,null,null,null,null,null,null,"LA VEGA",null,null,null,null,null,null,null,"SAN BERNARDO",null,null,null,null,"MOGOTES"]
[null,null,"GUARNE",null,null,null,null,"MONGUI",null,null,null,null,null,null,null,"LENGUAZAQUE",null,null,null,null,null,null,null,"SAN LORENZO",null,null,null,null,"MOLAGAVITA"]
[null,null,"GUATAPE",null,null,null,null,"MONIQUIRA",null,null,null,null,null,null,null,"MACHETA",null,null,null,null,null,null,null,"SAN PABLO",null,null,null,null,"OCAMONTE"]
[null,null,"HELICONIA",null,null,null,null,"MOTAVITA",null,null,null,null,null,null,null,"MADRID",null,null,null,null,null,null,null,"SAN PEDRO DE CARTAGO",null,null,null,null,"OIBA"]
[null,null,"HISPANIA",null,null,null,null,"MUZO",null,null,null,null,null,null,null,"MANTA",null,null,null,null,null,null,null,"SANDONA",null,null,null,null,"ONZAGA"]
[null,null,"ITAGUI",null,null,null,null,"NOBSA",null,null,null,null,null,null,null,"MEDINA",null,null,null,null,null,null,null,"SANTA BARBARA",null,null,null,null,"PALMAR"]
[null,null,"ITUANGO",null,null,null,null,"NUEVO COLON",null,null,null,null,null,null,null,"MOSQUERA",null,null,null,null,null,null,null,"SANTACRUZ",null,null,null,null,"PALMAS DEL SOCORRO"]
[null,null,"JARDIN",null,null,null,null,"OICATA",null,null,null,null,null,null,null,"NARIÑO",null,null,null,null,null,null,null,"SAPUYES",null,null,null,null,"PARAMO"]
[null,null,"JERICO",null,null,null,null,"OTANCHE",null,null,null,null,null,null,null,"NEMOCON",null,null,null,null,null,null,null,"TAMINANGO",null,null,null,null,"PIEDECUESTA"]
[null,null,"LA CEJA",null,null,null,null,"PACHAVITA",null,null,null,null,null,null,null,"NILO",null,null,null,null,null,null,null,"TANGUA",null,null,null,null,"PINCHOTE"]
[null,null,"LA ESTRELLA",null,null,null,null,"PAEZ",null,null,null,null,null,null,null,"NIMAIMA",null,null,null,null,null,null,null,"TUQUERRES",null,null,null,null,"PUENTE NACIONAL"]
[null,null,"LA PINTADA",null,null,null,null,"PAIPA",null,null,null,null,null,null,null,"NOCAIMA",null,null,null,null,null,null,null,"YACUANQUER",null,null,null,null,"PUERTO PARRA"]
[null,null,"LA UNION",null,null,null,null,"PAJARITO",null,null,null,null,null,null,null,"PACHO",null,null,null,null,null,null,null,null,null,null,null,null,"PUERTO WILCHES"]
[null,null,"LIBORINA",null,null,null,null,"PANQUEBA",null,null,null,null,null,null,null,"PAIME",null,null,null,null,null,null,null,null,null,null,null,null,"RIONEGRO"]
[null,null,"MACEO",null,null,null,null,"PAUNA",null,null,null,null,null,null,null,"PANDI",null,null,null,null,null,null,null,null,null,null,null,null,"SABANA DE TORRES"]
[null,null,"MARINILLA",null,null,null,null,"PAYA",null,null,null,null,null,null,null,"PARATEBUENO",null,null,null,null,null,null,null,null,null,null,null,null,"SAN ANDRES"]
[null,null,"MEDELLIN",null,null,null,null,"PAZ DE RIO",null,null,null,null,null,null,null,"PASCA",null,null,null,null,null,null,null,null,null,null,null,null,"SAN BENITO"]
[null,null,"MONTEBELLO",null,null,null,null,"PESCA",null,null,null,null,null,null,null,"PUERTO SALGAR",null,null,null,null,null,null,null,null,null,null,null,null,"SAN GIL"]
[null,null,"MURINDO",null,null,null,null,"PISBA",null,null,null,null,null,null,null,"PULI",null,null,null,null,null,null,null,null,null,null,null,null,"SAN JOAQUIN"]
[null,null,"MUTATA",null,null,null,null,"PUERTO BOYACA",null,null,null,null,null,null,null,"QUEBRADANEGRA",null,null,null,null,null,null,null,null,null,null,null,null,"SAN JOSE DE MIRANDA"]
[null,null,"NARIÑO",null,null,null,null,"QUIPAMA",null,null,null,null,null,null,null,"QUETAME",null,null,null,null,null,null,null,null,null,null,null,null,"SAN MIGUEL"]
[null,null,"NECHI",null,null,null,null,"RAMIRIQUI",null,null,null,null,null,null,null,"QUIPILE",null,null,null,null,null,null,null,null,null,null,null,null,"SAN VICENTE DE CHUCURI"]
[null,null,"NECOCLI",null,null,null,null,"RAQUIRA",null,null,null,null,null,null,null,"RICAURTE",null,null,null,null,null,null,null,null,null,null,null,null,"SANTA BARBARA"]
[null,null,"OLAYA",null,null,null,null,"RONDON",null,null,null,null,null,null,null,"SAN ANTONIO DEL TEQUENDAMA",null,null,null,null,null,null,null,null,null,null,null,null,"SANTA HELENA DEL OPON"]
[null,null,"PEÐOL",null,null,null,null,"SABOYA",null,null,null,null,null,null,null,"SAN BERNARDO",null,null,null,null,null,null,null,null,null,null,null,null,"SIMACOTA"]
[null,null,"PEQUE",null,null,null,null,"SACHICA",null,null,null,null,null,null,null,"SAN CAYETANO",null,null,null,null,null,null,null,null,null,null,null,null,"SOCORRO"]
[null,null,"PUEBLORRICO",null,null,null,null,"SAMACA",null,null,null,null,null,null,null,"SAN FRANCISCO",null,null,null,null,null,null,null,null,null,null,null,null,"SUAITA"]
[null,null,"PUERTO BERRIO",null,null,null,null,"SAN EDUARDO",null,null,null,null,null,null,null,"SAN JUAN DE RIO SECO",null,null,null,null,null,null,null,null,null,null,null,null,"SUCRE"]
[null,null,"PUERTO NARE",null,null,null,null,"SAN JOSE DE PARE",null,null,null,null,null,null,null,"SASAIMA",null,null,null,null,null,null,null,null,null,null,null,null,"SURATA"]
[null,null,"PUERTO TRIUNFO",null,null,null,null,"SAN LUIS DE GACENO",null,null,null,null,null,null,null,"SESQUILE",null,null,null,null,null,null,null,null,null,null,null,null,"TONA"]
[null,null,"REMEDIOS",null,null,null,null,"SAN MATEO",null,null,null,null,null,null,null,"SIBATE",null,null,null,null,null,null,null,null,null,null,null,null,"VALLE DE SAN JOSE"]
[null,null,"RETIRO",null,null,null,null,"SAN MIGUEL DE SEMA",null,null,null,null,null,null,null,"SILVANIA",null,null,null,null,null,null,null,null,null,null,null,null,"VELEZ"]
[null,null,"RIONEGRO",null,null,null,null,"SAN PABLO DE BORBUR",null,null,null,null,null,null,null,"SIMIJACA",null,null,null,null,null,null,null,null,null,null,null,null,"VETAS"]
[null,null,"SABANALARGA",null,null,null,null,"SANTA MARIA",null,null,null,null,null,null,null,"SOACHA",null,null,null,null,null,null,null,null,null,null,null,null,"VILLANUEVA"]
[null,null,"SABANETA",null,null,null,null,"SANTA ROSA DE VITERBO",null,null,null,null,null,null,null,"SOPO",null,null,null,null,null,null,null,null,null,null,null,null,"ZAPATOCA"]
[null,null,"SALGAR",null,null,null,null,"SANTA SOFIA",null,null,null,null,null,null,null,"SUBACHOQUE"]
[null,null,"SAN ANDRES DE CUERQUIA",null,null,null,null,"SANTANA",null,null,null,null,null,null,null,"SUESCA"]
[null,null,"SAN CARLOS",null,null,null,null,"SATIVANORTE",null,null,null,null,null,null,null,"SUPATA"]
[null,null,"SAN FRANCISCO",null,null,null,null,"SATIVASUR",null,null,null,null,null,null,null,"SUSA"]
[null,null,"SAN JERONIMO",null,null,null,null,"SIACHOQUE",null,null,null,null,null,null,null,"SUTATAUSA"]
[null,null,"SAN JOSE DE LA MONTAÑA",null,null,null,null,"SOATA",null,null,null,null,null,null,null,"TABIO"]
[null,null,"SAN JUAN DE URABA",null,null,null,null,"SOCHA",null,null,null,null,null,null,null,"TAUSA"]
[null,null,"SAN LUIS",null,null,null,null,"SOCOTA",null,null,null,null,null,null,null,"TENA"]
[null,null,"SAN PEDRO",null,null,null,null,"SOGAMOSO",null,null,null,null,null,null,null,"TENJO"]
[null,null,"SAN PEDRO DE URABA",null,null,null,null,"SOMONDOCO",null,null,null,null,null,null,null,"TIBACUY"]
[null,null,"SAN RAFAEL",null,null,null,null,"SORA",null,null,null,null,null,null,null,"TIBIRITA"]
[null,null,"SAN ROQUE",null,null,null,null,"SORACA",null,null,null,null,null,null,null,"TOCAIMA"]
[null,null,"SAN VICENTE",null,null,null,null,"SOTAQUIRA",null,null,null,null,null,null,null,"TOCANCIPA"]
[null,null,"SANTA BARBARA",null,null,null,null,"SUSACON",null,null,null,null,null,null,null,"TOPAIPI"]
[null,null,"SANTA ROSA DE OSOS",null,null,null,null,"SUTAMARCHAN",null,null,null,null,null,null,null,"UBALA"]
[null,null,"SANTAFE DE ANTIOQUIA",null,null,null,null,"SUTATENZA",null,null,null,null,null,null,null,"UBAQUE"]
[null,null,"SANTO DOMINGO",null,null,null,null,"TASCO",null,null,null,null,null,null,null,"UNE"]
[null,null,"SEGOVIA",null,null,null,null,"TENZA",null,null,null,null,null,null,null,"UTICA"]
[null,null,"SONSON",null,null,null,null,"TIBANA",null,null,null,null,null,null,null,"VENECIA"]
[null,null,"SOPETRAN",null,null,null,null,"TIBASOSA",null,null,null,null,null,null,null,"VERGARA"]
[null,null,"TAMESIS",null,null,null,null,"TINJACA",null,null,null,null,null,null,null,"VIANI"]
[null,null,"TARAZA",null,null,null,null,"TIPACOQUE",null,null,null,null,null,null,null,"VILLA DE SAN DIEGO DE UBATE"]
[null,null,"TARSO",null,null,null,null,"TOCA",null,null,null,null,null,null,null,"VILLAGOMEZ"]
[null,null,"TITIRIBI",null,null,null,null,"TOGsI",null,null,null,null,null,null,null,"VILLAPINZON"]
[null,null,"TOLEDO",null,null,null,null,"TOPAGA",null,null,null,null,null,null,null,"VILLETA"]
[null,null,"TURBO",null,null,null,null,"TOTA",null,null,null,null,null,null,null,"VIOTA"]
[null,null,"URAMITA",null,null,null,null,"TUNJA",null,null,null,null,null,null,null,"YACOPI"]
[null,null,"URRAO",null,null,null,null,"TUNUNGUA",null,null,null,null,null,null,null,"ZIPACON"]
[null,null,"VALDIVIA",null,null,null,null,"TURMEQUE",null,null,null,null,null,null,null,"ZIPAQUIRA"]
[null,null,"VALPARAISO",null,null,null,null,"TUTA"]
[null,null,"VEGACHI",null,null,null,null,"TUTAZA"]
[null,null,"VENECIA",null,null,null,null,"UMBITA"]
[null,null,"VIGIA DEL FUERTE",null,null,null,null,"VENTAQUEMADA"]
[null,null,"YALI",null,null,null,null,"VILLA DE LEYVA"]
[null,null,"YARUMAL",null,null,null,null,"VIRACACHA"]
[null,null,"YOLOMBO",null,null,null,null,"ZETAQUIRA"]
[null,null,"YONDO"]
[null,null,"ZARAGOZA"]

{"sheet":"Cotización","index":2,"n_rows":27,"n_cols":12,"rows_kept":27,"cut":false,"hidden":false,"merged":[[0,1,0,11],[1,3,1,10],[2,1,2,11],[7,1,7,11],[17,9,18,9],[17,8,18,8],[9,8,11,9],[9,10,11,10],[17,11,18,11],[15,1,15,11],[9,5,9,6],[11,1,11,3],[11,5,11,6],[17,6,18,6],[17,7,18,7],[21,2,21,3],[24,1,24,8],[4,1,4,2],[4,3,4,7],[17,10,18,10],[13,1,13,3],[17,1,18,1],[17,2,18,2],[17,3,18,3],[17,4,18,4],[17,5,18,5],[13,5,13,6],[9,1,9,3],[26,2,26,4],[26,5,26,7],[25,2,25,4],[25,5,25,7],[22,8,22,9]]}
[null,"COTIZACIÓN"]
[null,{"$f":"+Solicitud!B2","v":"Versión 12"},{"$f":"+Solicitud!C2","v":"2024-07-19"},"                 Servicios Postales de Pago"]
[null,"Proveedor"]
[]
[null,"Nombre del Operador Postal"]
[]
[]
[null,"Información de Cotización"]
[]
[null,"Fecha de inicio OC",null,null,null,"Fecha de vencimiento OC",null,null,"¿Se debe incluir IVA?\nExención de IVA por programa social del Gobierno Nacional (Ley 1943 del 28 de diciembre de 2019)"]
[]
[null,"Frecuencia de pagos al año",null,null,null,"Valor estimado a pagar en cada frecuencia"]
[]
[null,"Valor estimado a pagar a cada Beneficiario",null,null,null,"Fecha de compromiso primera entrega"]
[]
[null,"Paquete de Servicios"]
[]
[null,"Item","Código DANE","Departamento","Municipio","Número Estimado de Beneficiarios","Cantidad de Transferencias por Programa","Total cantidad estimada de transferencia","Tipo de Servicio Postal de Pago","Precio por transferencia","Total","Observaciones"]
[]
[null,1,null,null,null,null,null,0,null,null,{"$f":"J20*H20","v":0}]
[]
[null,null,"Total ",null,1,{"$f":"SUM(F20:F20)","v":0},null,null,"Subtotal",{"$f":"SUM(J20:J20)","v":0},{"$f":"SUM(K20:K20)","v":0}]
[null,null,null,null,null,null,null,null,"IVA (19%) ",null,{"$f":"IF(K10=\"Si\",K22*0.19,0)","v":0}]
[null,null,null,null,null,null,null,null,null,"Total ",{"$f":"+K22+K23","v":0}]
[null,"Tarifas adicionales para los Beneficiarios"]
[null,"No","Nombre del servicio",null,null,"Descripción",null,null,"Valor"]
[null,1]

{"sheet":"Catalogo Precios","index":3,"n_rows":76,"n_cols":8,"rows_kept":76,"cut":false,"hidden":true,"merged":[[4,0,15,0],[4,2,15,2],[16,0,27,0],[16,2,27,2],[28,0,39,0],[28,2,39,2],[40,0,51,0],[40,2,51,2],[52,0,63,0],[52,2,63,2],[52,3,75,3],[64,0,75,0],[64,2,75,2]]}
[]
[]
[null,null,null,"Servicios Postales Nacionales 4-72","Efecty","Matrix","SuperGiros","MoviRed"]
["Servicio Postal de Pago","Monto","Localización","Precio y/o Porcentaje comisión","Precio y/o Porcentaje comisión","Precio y/o Porcentaje comisión","Precio y/o Porcentaje comisión","Precio y/o Porcentaje comisión"]
["Entrega del incentivo en los corresponsales, oficinas, cajas extendidas y otros aliados","$ 1 - $ 50.000",1,4000,2600,2500,2300,2300]
[null,"$ 50.001 - $ 100.000",null,6000,2600,2500,2300,2300]
[null,"$ 100.001 - $ 150.000",null,7500,2600,2500,2300,2300]
[null,"$ 150.001 - $ 200.000",null,8300,2600,2500,2300,2300]
[null,"$ 200.001 - $ 250.000",null,8900,3300,2500,2300,2300]
[null,"$ 250.001 - $ 300.000",null,9400,3300,2700,2300,2300]
[null,"$ 300.001 - $ 350.000",null,9900,3300,3000,2300,2300]
[null,"$ 350.001 - $ 400.000",null,10400,3300,3000,2300,2300]
[null,"$ 400.001 - $ 450.000",null,2.5999999999999999E-2,5000,3500,2300,2300]
[null,"$ 450.001 - $ 500.000",null,{"$f":"+D13","v":2.5999999999999999E-2},5000,3500,2300,2300]
[null,"$ 500.001 - $ 550.000",null,{"$f":"+D14","v":2.5999999999999999E-2},5000,3500,2300,2300]
[null,"$ 550.001 - en adelante",null,{"$f":"+D15","v":2.5999999999999999E-2},0.01,3500,2300,2300]
["Entrega del incentivo en los corresponsales, oficinas, cajas extendidas y otros aliados","$ 1 - $ 50.000",2,{"$f":"+D5","v":4000},3300,2500,2300,2300]
[null,"$ 50.001 - $ 100.000",null,{"$f":"+D6","v":6000},3300,2500,2300,2300]
[null,"$ 100.001 - $ 150.000",null,7500,3300,2500,2300,2300]
[null,"$ 150.001 - $ 200.000",null,8300,3300,2500,2300,2300]
[null,"$ 200.001 - $ 250.000",null,8900,5000,2500,2300,2300]
[null,"$ 250.001 - $ 300.000",null,9400,5000,2700,2300,2300]
[null,"$ 300.001 - $ 350.000",null,9900,5000,3000,2300,2300]
[null,"$ 350.001 - $ 400.000",null,10400,5000,3000,2300,2300]
[null,"$ 400.001 - $ 450.000",null,2.5999999999999999E-2,6200,3500,2300,2300]
[null,"$ 450.001 - $ 500.000",null,2.5999999999999999E-2,6200,3500,2300,2300]
[null,"$ 500.001 - $ 550.000",null,2.5999999999999999E-2,6200,3500,2300,2300]
[null,"$ 550.001 - en adelante",null,2.5999999999999999E-2,1.2E-2,3500,2300,2300]
["Entrega del incentivo en los corresponsales, oficinas, cajas extendidas y otros aliados","$ 1 - $ 50.000",3,{"$f":"+D17","v":4000},4000,2500,3500,2300]
[null,"$ 50.001 - $ 100.000",null,{"$f":"+D18","v":6000},4000,2500,3500,2300]
[null,"$ 100.001 - $ 150.000",null,7500,4000,2500,3500,2300]
[null,"$ 150.001 - $ 200.000",null,8300,4000,2500,3500,2300]
[null,"$ 200.001 - $ 250.000",null,8900,6200,2500,3500,2300]
[null,"$ 250.001 - $ 300.000",null,9400,6200,2700,3500,2300]
[null,"$ 300.001 - $ 350.000",null,9900,6200,3000,3500,2300]
[null,"$ 350.001 - $ 400.000",null,10400,6200,3000,3500,2300]
[null,"$ 400.001 - $ 450.000",null,2.5999999999999999E-2,8000,3500,3500,2300]
[null,"$ 450.001 - $ 500.000",null,2.5999999999999999E-2,8000,3500,3500,2300]
[null,"$ 500.001 - $ 550.000",null,2.5999999999999999E-2,8000,3500,3500,2300]
[null,"$ 550.001 - en adelante",null,2.5999999999999999E-2,1.4999999999999999E-2,3500,3500,2300]
["Entrega del incentivo en los corresponsales, oficinas, cajas extendidas y otros aliados","$ 1 - $ 50.000",4,{"$f":"+D29","v":4000},5000,2500,3500,2300]
[null,"$ 50.001 - $ 100.000",null,{"$f":"+D30","v":6000},5000,2500,3500,2300]
[null,"$ 100.001 - $ 150.000",null,7500,5000,2500,3500,2300]
[null,"$ 150.001 - $ 200.000",null,8300,5000,2500,3500,2300]
[null,"$ 200.001 - $ 250.000",null,8900,10000,2500,3500,2300]
[null,"$ 250.001 - $ 300.000",null,9400,10000,2700,3500,2300]
[null,"$ 300.001 - $ 350.000",null,9900,10000,3000,3500,2300]
[null,"$ 350.001 - $ 400.000",null,10400,10000,3000,3500,2300]
[null,"$ 400.001 - $ 450.000",null,2.5999999999999999E-2,2.5999999999999999E-2,3500,3500,2300]
[null,"$ 450.001 - $ 500.000",null,2.5999999999999999E-2,2.5999999999999999E-2,3500,3500,2300]
[null,"$ 500.001 - $ 550.000",null,2.5999999999999999E-2,2.5999999999999999E-2,3500,3500,2300]
[null,"$ 550.001 - en adelante",null,2.5999999999999999E-2,2.5999999999999999E-2,3500,3500,2300]
["Entrega directa de efectivo al Beneficiario en las cabeceras distritales y municipales fuera de las instalaciones de los Operadores Postales de Pago","$ 1 - $ 50.000","No Aplica","No se hace presentación",5000,4000]
[null,"$ 50.001 - $ 100.000",null,null,5000,4000]
[null,"$ 100.001 - $ 150.000",null,null,5000,4000]
[null,"$ 150.001 - $ 200.000",null,null,5000,4000]
[null,"$ 200.001 - $ 250.000",null,null,10000,4000]
[null,"$ 250.001 - $ 300.000",null,null,10000,4000]
[null,"$ 300.001 - $ 350.000",null,null,10000,4000]
[null,"$ 350.001 - $ 400.000",null,null,10000,4000]
[null,"$ 400.001 - $ 450.000",null,null,0.03,4000]
[null,"$ 450.001 - $ 500.000",null,null,0.03,4000]
[null,"$ 500.001 - $ 550.000",null,null,0.03,4000]
[null,"$ 550.001 - en adelante",null,null,0.03,4000]
["Entrega directa de efectivo al Beneficiario en zona rural fuera de las instalaciones de los Operadores Postales de Pago","$ 1 - $ 50.000","No Aplica",null,10000,4000]
[null,"$ 50.001 - $ 100.000",null,null,10000,4000]
[null,"$ 100.001 - $ 150.000",null,null,10000,4000]
[null,"$ 150.001 - $ 200.000",null,null,10000,4000]
[null,"$ 200.001 - $ 250.000",null,null,10000,4000]
[null,"$ 250.001 - $ 300.000",null,null,10000,4000]
[null,"$ 300.001 - $ 350.000",null,null,12000,4000]
[null,"$ 350.001 - $ 400.000",null,null,12000,4000]
[null,"$ 400.001 - $ 450.000",null,null,0.04,4000]
[null,"$ 450.001 - $ 500.000",null,null,0.04,4000]
[null,"$ 500.001 - $ 550.000",null,null,0.04,4000]
[null,"$ 550.001 - en adelante",null,null,0.04,4000]

{"sheet":"Catálogo Localización","index":4,"n_rows":1128,"n_cols":10,"rows_kept":1128,"cut":false,"hidden":true,"merged":[[2,1,2,4]]}
[]
[]
[]
[]
[null,null,null,null,null,"Servicios Postales Nacionales 4-72","Efecty","Matrix","SuperGiros","MoviRed"]
[null,"Departamento","Municipio","Código DANE del Municipio","Localización","Marque una x donde presta el servicio ","Marque una x donde presta el servicio ","Marque una x donde presta el servicio ","Marque una x donde presta el servicio ","Marque una x donde presta el servicio "]
[null,"ANTIOQUIA","MEDELLIN",5001,"1","X","X","X","X","X"]
[null,"ANTIOQUIA","ABEJORRAL",5002,"3",null,"X","X","X","X"]
[null,"ANTIOQUIA","ABRIAQUI",5004,"Otros",null,"X","X","X","X"]
[null,"ANTIOQUIA","ALEJANDRIA",5021,"4",null,"X","X","X","X"]
[null,"ANTIOQUIA","AMAGA",5030,"3",null,"X","X","X","X"]
[null,"ANTIOQUIA","AMALFI",5031,"Otros",null,"X","X","X","X"]
[null,"ANTIOQUIA","ANDES",5034,"3","X","X","X","X","X"]
[null,"ANTIOQUIA","ANGELOPOLIS",5036,"4",null,"X","X","X","X"]
[null,"ANTIOQUIA","ANGOSTURA",5038,"4",null,"X","X","X","X"]
[null,"ANTIOQUIA","ANORI",5040,"4",null,"X","X","X","X"]
[null,"ANTIOQUIA","SANTAFE DE ANTIOQUIA",5042,"3",null,"X","X","X","X"]
[null,"ANTIOQUIA","ANZA",5044,"4",null,"X","X","X","X"]
[null,"ANTIOQUIA","APARTADO",5045,"1","X","X","X","X","X"]
[null,"ANTIOQUIA","ARBOLETES",5051,"3",null,"X","X","X","X"]
[null,"ANTIOQUIA","ARGELIA",5055,"3",null,"X","X","X","X"]
[null,"ANTIOQUIA","ARMENIA",5059,"4","X","X","X","X","X"]
[null,"ANTIOQUIA","BARBOSA",5079,"Otros","X","X","X","X","X"]
[null,"ANTIOQUIA","BELMIRA",5086,"Otros",null,"X","X","X","X"]
[null,"ANTIOQUIA","BELLO",5088,"1","X","X","X","X","X"]
[null,"ANTIOQUIA","BETANIA",5091,"3",null,null,"X","X","X"]
[null,"ANTIOQUIA","BETULIA",5093,"4",null,"X","X","X","X"]
[null,"ANTIOQUIA","CIUDAD BOLIVAR",5101,"3",null,"X","X","X","X"]
[null,"ANTIOQUIA","BRICEÑO",5107,"Otros",null,"X","X","X","X"]
[null,"ANTIOQUIA","BURITICA",5113,"Otros",null,"X","X","X"]
[null,"ANTIOQUIA","CACERES",5120,"Otros",null,"X","X","X","X"]
[null,"ANTIOQUIA","CAICEDO",5125,"4",null,"X","X","X","X"]
[null,"ANTIOQUIA","CALDAS",5129,"2",null,"X","X","X","X"]
[null,"ANTIOQUIA","CAMPAMENTO",5134,"4",null,"X","X","X","X"]
[null,"ANTIOQUIA","CAÑASGORDAS",5138,"4",null,"X","X","X","X"]
[null,"ANTIOQUIA","CARACOLI",5142,"4",null,"X","X","X","X"]
[null,"ANTIOQUIA","CARAMANTA",5145,"4",null,"X","X","X","X"]
[null,"ANTIOQUIA","CAREPA",5147,"Otros",null,"X","X","X","X"]
[null,"ANTIOQUIA","EL CARMEN DE VIBORAL",5148,"3",null,"X","X","X","X"]
[null,"ANTIOQUIA","CAROLINA",5150,"4",null,"X","X","X","X"]
[null,"ANTIOQUIA","CAUCASIA",5154,"3",null,"X","X","X","X"]
[null,"ANTIOQUIA","CHIGORODO",5172,"3",null,"X","X","X","X"]
[null,"ANTIOQUIA","CISNEROS",5190,"4",null,"X","X","X","X"]
[null,"ANTIOQUIA","COCORNA",5197,"4",null,"X","X","X","X"]
[null,"ANTIOQUIA","CONCEPCION",5206,"4",null,"X","X","X","X"]
[null,"ANTIOQUIA","CONCORDIA",5209,"Otros",null,"X","X","X","X"]
[null,"ANTIOQUIA","COPACABANA",5212,"3",null,"X","X","X","X"]
[null,"ANTIOQUIA","DABEIBA",5234,"3",null,"X","X","X","X"]
[null,"ANTIOQUIA","DON MATIAS",5237,"3",null,"X","X","X","X"]
[null,"ANTIOQUIA","EBEJICO",5240,"4",null,"X","X","X","X"]
[null,"ANTIOQUIA","EL BAGRE",5250,"3",null,"X","X","X","X"]
[null,"ANTIOQUIA","ENTRERRIOS",5264,"Otros",null,"X","X","X","X"]
[null,"ANTIOQUIA","ENVIGADO",5266,"1","X","X","X","X","X"]
[null,"ANTIOQUIA","FREDONIA",5282,"Otros",null,"X","X","X","X"]
[null,"ANTIOQUIA","FRONTINO",5284,"3",null,"X","X","X","X"]
[null,"ANTIOQUIA","GIRALDO",5306,"Otros",null,"X","X","X","X"]
[null,"ANTIOQUIA","GIRARDOTA",5308,"3",null,"X","X","X","X"]
[null,"ANTIOQUIA","GOMEZ PLATA",5310,"4",null,"X","X","X","X"]
[null,"ANTIOQUIA","GRANADA",5313,"4",null,"X","X","X","X"]
[null,"ANTIOQUIA","GUADALUPE",5315,"4",null,"X","X","X"]
[null,"ANTIOQUIA","GUARNE",5318,"3",null,"X","X","X","X"]
[null,"ANTIOQUIA","GUATAPE",5321,"Otros",null,"X","X","X","X"]
[null,"ANTIOQUIA","HELICONIA",5347,"4",null,"X","X","X","X"]
[null,"ANTIOQUIA","HISPANIA",5353,"Otros",null,"X","X","X","X"]
[null,"ANTIOQUIA","ITAGUI",5360,"Otros","X","X","X","X","X"]
[null,"ANTIOQUIA","ITUANGO",5361,"4",null,"X","X","X","X"]
[null,"ANTIOQUIA","JARDIN",5364,"3",null,"X","X","X","X"]
[null,"ANTIOQUIA","JERICO",5368,"4",null,"X","X","X","X"]
[null,"ANTIOQUIA","LA CEJA",5376,"2",null,"X","X","X","X"]
[null,"ANTIOQUIA","LA ESTRELLA",5380,"3",null,"X","X","X","X"]
[null,"ANTIOQUIA","LA PINTADA",5390,"4",null,"X","X","X","X"]
[null,"ANTIOQUIA","LA UNION",5400,"3",null,"X","X","X","X"]
[null,"ANTIOQUIA","LIBORINA",5411,"4",null,"X","X","X","X"]
[null,"ANTIOQUIA","MACEO",5425,"4",null,"X","X","X","X"]
[null,"ANTIOQUIA","MARINILLA",5440,"3","X","X","X","X","X"]
[null,"ANTIOQUIA","MONTEBELLO",5467,"4",null,"X","X","X","X"]
[null,"ANTIOQUIA","MURINDO",5475,"Otros",null,null,"X","X"]
[null,"ANTIOQUIA","MUTATA",5480,"4",null,"X","X","X","X"]
[null,"ANTIOQUIA","NARIÑO",5483,"4",null,"X","X","X","X"]
[null,"ANTIOQUIA","NECOCLI",5490,"3",null,"X","X","X","X"]
[null,"ANTIOQUIA","NECHI",5495,"3",null,"X","X","X","X"]
[null,"ANTIOQUIA","OLAYA",5501,"Otros",null,null,"X","X"]
[null,"ANTIOQUIA","PEÐOL",5541,"4",null,"X","X","X","X"]
[null,"ANTIOQUIA","PEQUE",5543,"4",null,"X","X","X","X"]
[null,"ANTIOQUIA","PUEBLORRICO",5576,"4",null,"X","X","X","X"]
[null,"ANTIOQUIA","PUERTO BERRIO",5579,"3",null,"X","X","X","X"]
[null,"ANTIOQUIA","PUERTO NARE",5585,"3",null,"X","X","X","X"]
[null,"ANTIOQUIA","PUERTO TRIUNFO",5591,"4",null,"X","X","X","X"]
[null,"ANTIOQUIA","REMEDIOS",5604,"4",null,"X","X","X","X"]
[null,"ANTIOQUIA","RETIRO",5607,"3",null,"X","X","X","X"]
[null,"ANTIOQUIA","RIONEGRO",5615,"Otros","X","X","X","X","X"]
[null,"ANTIOQUIA","SABANALARGA",5628,"4",null,"X","X","X","X"]
[null,"ANTIOQUIA","SABANETA",5631,"Otros","X","X","X","X","X"]
[null,"ANTIOQUIA","SALGAR",5642,"Otros",null,"X","X","X","X"]
[null,"ANTIOQUIA","SAN ANDRES DE CUERQUIA",5647,"4",null,"X","X","X","X"]
[null,"ANTIOQUIA","SAN CARLOS",5649,"4",null,"X","X","X","X"]
[null,"ANTIOQUIA","SAN FRANCISCO",5652,"Otros",null,"X","X","X","X"]
[null,"ANTIOQUIA","SAN JERONIMO",5656,"4",null,"X","X","X","X"]
[null,"ANTIOQUIA","SAN JOSE DE LA MONTAÑA",5658,"4",null,"X","X","X","X"]
[null,"ANTIOQUIA","SAN JUAN DE URABA",5659,"Otros",null,"X","X","X","X"]
[null,"ANTIOQUIA","SAN LUIS",5660,"4",null,"X","X","X","X"]
[null,"ANTIOQUIA","SAN PEDRO",5664,"4",null,"X","X","X","X"]
[null,"ANTIOQUIA","SAN PEDRO DE URABA",5665,"4",null,"X","X","X","X"]
[null,"ANTIOQUIA","SAN RAFAEL",5667,"4",null,"X","X","X","X"]
[null,"ANTIOQUIA","SAN ROQUE",5670,"4",null,"X","X","X","X"]
[null,"ANTIOQUIA","SAN VICENTE",5674,"4",null,"X","X","X","X"]
[null,"ANTIOQUIA","SANTA BARBARA",5679,"Otros",null,"X","X","X","X"]
[null,"ANTIOQUIA","SANTA ROSA DE OSOS",5686,"3",null,"X","X","X","X"]
[null,"ANTIOQUIA","SANTO DOMINGO",5690,"4",null,"X","X","X","X"]
[null,"ANTIOQUIA","EL SANTUARIO",5697,"4",null,"X","X","X","X"]
[null,"ANTIOQUIA","SEGOVIA",5736,"3",null,"X","X","X","X"]
[null,"ANTIOQUIA","SONSON",5756,"3",null,"X","X","X","X"]
[null,"ANTIOQUIA","SOPETRAN",5761,"4",null,"X","X","X","X"]
[null,"ANTIOQUIA","TAMESIS",5789,"Otros",null,"X","X","X","X"]
[null,"ANTIOQUIA","TARAZA",5790,"4",null,"X","X","X","X"]
[null,"ANTIOQUIA","TARSO",5792,"4",null,null,"X","X","X"]
[null,"ANTIOQUIA","TITIRIBI",5809,"4",null,"X","X","X","X"]
[null,"ANTIOQUIA","TOLEDO",5819,"4",null,"X","X","X","X"]
[null,"ANTIOQUIA","TURBO",5837,"3",null,"X","X","X","X"]
[null,"ANTIOQUIA","URAMITA",5842,"Otros",null,"X","X","X","X"]
[null,"ANTIOQUIA","URRAO",5847,"Otros",null,"X","X","X","X"]
[null,"ANTIOQUIA","VALDIVIA",5854,"4",null,"X","X","X","X"]
[null,"ANTIOQUIA","VALPARAISO",5856,"4",null,"X","X","X","X"]
[null,"ANTIOQUIA","VEGACHI",5858,"4",null,"X","X","X","X"]
[null,"ANTIOQUIA","VENECIA",5861,"Otros",null,"X","X","X","X"]
[null,"ANTIOQUIA","VIGIA DEL FUERTE",5873,"Otros",null,"X","X","X","X"]
[null,"ANTIOQUIA","YALI",5885,"Otros",null,"X","X","X","X"]
[null,"ANTIOQUIA","YARUMAL",5887,"3","X","X","X","X","X"]
[null,"ANTIOQUIA","YOLOMBO",5890,"Otros",null,"X","X","X","X"]
[null,"ANTIOQUIA","YONDO",5893,"4",null,"X","X","X","X"]
[null,"ANTIOQUIA","ZARAGOZA",5895,"4",null,"X","X","X","X"]
[null,"ATLANTICO","BARRANQUILLA",8001,"1","X","X","X","X","X"]
[null,"ATLANTICO","BARANOA",8078,"3",null,"X","X","X","X"]
[null,"ATLANTICO","CAMPO DE LA CRUZ",8137,"4",null,"X","X","X","X"]
[null,"ATLANTICO","CANDELARIA",8141,"4",null,"X","X","X","X"]
[null,"ATLANTICO","GALAPA",8296,"Otros",null,"X","X","X","X"]
[null,"ATLANTICO","JUAN DE ACOSTA",8372,"4",null,"X","X","X","X"]
[null,"ATLANTICO","LURUACO",8421,"4",null,"X","X","X","X"]
[null,"ATLANTICO","MALAMBO",8433,"Otros",null,"X","X","X","X"]
[null,"ATLANTICO","MANATI",8436,"4",null,"X","X","X","X"]
[null,"ATLANTICO","PALMAR DE VARELA",8520,"Otros",null,"X","X","X","X"]
[null,"ATLANTICO","PIOJO",8549,"Otros",null,"X","X","X","X"]
[null,"ATLANTICO","POLONUEVO",8558,"Otros",null,"X","X","X","X"]
[null,"ATLANTICO","PONEDERA",8560,"Otros",null,"X","X","X","X"]
[null,"ATLANTICO","PUERTO COLOMBIA",8573,"4",null,"X","X","X","X"]
[null,"ATLANTICO","REPELON",8606,"4",null,"X","X","X","X"]
[null,"ATLANTICO","SABANAGRANDE",8634,"Otros",null,"X","X","X","X"]
[null,"ATLANTICO","SABANALARGA",8638,"Otros",null,"X","X","X","X"]
[null,"ATLANTICO","SANTA LUCIA",8675,"Otros",null,"X","X","X","X"]
[null,"ATLANTICO","SANTO TOMAS",8685,"4",null,"X","X","X","X"]
[null,"ATLANTICO","SOLEDAD",8758,"Otros",null,"X","X","X","X"]
[null,"ATLANTICO","SUAN",8770,"Otros",null,"X","X","X","X"]
[null,"ATLANTICO","TUBARA",8832,"Otros",null,"X","X","X","X"]
[null,"ATLANTICO","USIACURI",8849,"Otros",null,"X","X","X","X"]
[null,"BOGOTA","BOGOTA, D.C.",11001,"1","X","X","X","X","X"]
[null,"BOLIVAR","CARTAGENA",13001,"1","X","X","X","X","X"]
[null,"BOLIVAR","ACHI",13006,"4",null,"X","X","X","X"]
[null,"BOLIVAR","ALTOS DEL ROSARIO",13030,"Otros",null,"X","X","X","X"]
[null,"BOLIVAR","ARENAL",13042,"Otros",null,"X","X","X","X"]
[null,"BOLIVAR","ARJONA",13052,"3",null,"X","X","X","X"]
[null,"BOLIVAR","ARROYOHONDO",13062,"Otros",null,"X","X","X"]
[null,"BOLIVAR","BARRANCO DE LOBA",13074,"Otros",null,"X","X","X","X"]
[null,"BOLIVAR","CALAMAR",13140,"4",null,"X","X","X","X"]
[null,"BOLIVAR","CANTAGALLO",13160,"Otros",null,"X","X","X","X"]
[null,"BOLIVAR","CICUCO",13188,"Otros",null,"X","X","X","X"]
[null,"BOLIVAR","CORDOBA",13212,"Otros",null,"X","X","X","X"]
[null,"BOLIVAR","CLEMENCIA",13222,"Otros",null,"X","X","X","X"]
[null,"BOLIVAR","EL CARMEN DE BOLIVAR",13244,"Otros",null,"X","X","X","X"]
[null,"BOLIVAR","EL GUAMO",13248,"Otros","X","X","X","X","X"]
[null,"BOLIVAR","EL PEÑON",13268,"Otros",null,"X","X","X"]
[null,"BOLIVAR","HATILLO DE LOBA",13300,"Otros",null,"X","X","X","X"]
[null,"BOLIVAR","MAGANGUE",13430,"3","X","X","X","X","X"]
[null,"BOLIVAR","MAHATES",13433,"Otros",null,"X","X","X","X"]
[null,"BOLIVAR","MARGARITA",13440,"Otros",null,"X","X","X","X"]
[null,"BOLIVAR","MARIA LA BAJA",13442,"4",null,"X","X","X","X"]
[null,"BOLIVAR","MONTECRISTO",13458,"Otros",null,"X","X","X","X"]
[null,"BOLIVAR","MOMPOS",13468,"3",null,"X","X","X","X"]
[null,"BOLIVAR","NOROSI",13490,"Otros",null,"X","X","X","X"]
[null,"BOLIVAR","MORALES",13473,"4",null,"X","X","X","X"]
[null,"BOLIVAR","PINILLOS",13549,"4",null,"X","X","X","X"]
[null,"BOLIVAR","REGIDOR",13580,"Otros",null,"X","X","X","X"]
[null,"BOLIVAR","RIO VIEJO",13600,"Otros",null,"X","X","X","X"]
[null,"BOLIVAR","SAN CRISTOBAL",13620,"Otros",null,"X","X","X","X"]
[null,"BOLIVAR","SAN ESTANISLAO",13647,"4",null,"X","X","X","X"]
[null,"BOLIVAR","SAN FERNANDO",13650,"Otros",null,"X","X","X","X"]
[null,"BOLIVAR","SAN JACINTO",13654,"4",null,"X","X","X","X"]
[null,"BOLIVAR","SAN JACINTO DEL CAUCA",13655,"Otros",null,"X","X","X","X"]
[null,"BOLIVAR","SAN JUAN NEPOMUCENO",13657,"4",null,"X","X","X","X"]
[null,"BOLIVAR","SAN MARTIN DE LOBA",13667,"Otros",null,"X","X","X","X"]
[null,"BOLIVAR","SAN PABLO",13670,"4",null,"X","X","X","X"]
[null,"BOLIVAR","SANTA CATALINA",13673,"4",null,"X","X","X","X"]
[null,"BOLIVAR","SANTA ROSA",13683,"Otros",null,"X","X","X","X"]
[null,"BOLIVAR","SANTA ROSA DEL SUR",13688,"4",null,"X","X","X","X"]
[null,"BOLIVAR","SIMITI",13744,"4",null,"X","X","X","X"]
[null,"BOLIVAR","SOPLAVIENTO",13760,"Otros",null,"X","X","X","X"]
[null,"BOLIVAR","TALAIGUA NUEVO",13780,"Otros",null,"X","X","X","X"]
[null,"BOLIVAR","TIQUISIO",13810,"Otros",null,"X","X","X","X"]
[null,"BOLIVAR","TURBACO",13836,"Otros",null,"X","X","X","X"]
[null,"BOLIVAR","TURBANA",13838,"Otros",null,"X","X","X","X"]
[null,"BOLIVAR","VILLANUEVA",13873,"Otros",null,"X","X","X","X"]
[null,"BOLIVAR","ZAMBRANO",13894,"Otros",null,"X","X","X","X"]
[null,"BOYACA","TUNJA",15001,"1","X","X","X","X","X"]
[null,"BOYACA","ALMEIDA",15022,"Otros",null,"X","X","X"]
[null,"BOYACA","AQUITANIA",15047,"4",null,"X","X","X","X"]
[null,"BOYACA","ARCABUCO",15051,"4",null,"X","X","X","X"]
[null,"BOYACA","BELEN",15087,"4",null,"X","X","X","X"]
[null,"BOYACA","BERBEO",15090,"Otros",null,"X","X","X"]
[null,"BOYACA","BETEITIVA",15092,"Otros",null,"X","X","X","X"]
[null,"BOYACA","BOAVITA",15097,"4",null,"X","X","X","X"]
[null,"BOYACA","BOYACA",15104,"Otros",null,"X","X","X","X"]
[null,"BOYACA","BRICEÑO",15106,"Otros",null,"X","X","X"]
[null,"BOYACA","BUENAVISTA",15109,"Otros",null,"X","X","X","X"]
[null,"BOYACA","BUSBANZA",15114,"Otros",null,"X","X","X"]
[null,"BOYACA","CALDAS",15131,"Otros",null,"X","X","X"]
[null,"BOYACA","CAMPOHERMOSO",15135,"4",null,"X","X","X","X"]
[null,"BOYACA","CERINZA",15162,"Otros",null,"X","X","X","X"]
[null,"BOYACA","CHINAVITA",15172,"4",null,"X","X","X","X"]
[null,"BOYACA","CHIQUINQUIRA",15176,"3","X","X","X","X","X"]
[null,"BOYACA","CHISCAS",15180,"4",null,"X","X","X"]
[null,"BOYACA","CHITA",15183,"4",null,"X","X","X","X"]
[null,"BOYACA","CHITARAQUE",15185,"4",null,"X","X","X","X"]
[null,"BOYACA","CHIVATA",15187,"Otros",null,"X","X","X","X"]
[null,"BOYACA","CIENEGA",15189,"Otros",null,"X","X","X"]
[null,"BOYACA","COMBITA",15204,"Otros",null,"X","X","X","X"]
[null,"BOYACA","COPER",15212,"Otros",null,"X","X","X"]
[null,"BOYACA","CORRALES",15215,"Otros",null,"X","X","X"]
[null,"BOYACA","COVARACHIA",15218,"4",null,"X","X","X","X"]
[null,"BOYACA","CUBARA",15223,"4",null,"X","X","X","X"]
[null,"BOYACA","CUCAITA",15224,"Otros",null,"X","X","X","X"]
[null,"BOYACA","CUITIVA",15226,"Otros",null,null,"X","X","X"]
[null,"BOYACA","CHIQUIZA",15232,"Otros",null,"X","X","X"]
[null,"BOYACA","CHIVOR",15236,"4",null,"X","X","X","X"]
[null,"BOYACA","DUITAMA",15238,"1","X","X","X","X","X"]
[null,"BOYACA","EL COCUY",15244,"4",null,"X","X","X","X"]
[null,"BOYACA","EL ESPINO",15248,"4",null,"X","X","X","X"]
[null,"BOYACA","FIRAVITOBA",15272,"Otros",null,"X","X","X","X"]
[null,"BOYACA","FLORESTA",15276,"Otros",null,"X","X","X","X"]
[null,"BOYACA","GACHANTIVA",15293,"4",null,"X","X","X","X"]
[null,"BOYACA","GAMEZA",15296,"4",null,"X","X","X","X"]
[null,"BOYACA","GARAGOA",15299,"2",null,"X","X","X","X"]
[null,"BOYACA","GUACAMAYAS",15317,"Otros",null,"X","X","X"]
[null,"BOYACA","GUATEQUE",15322,"3",null,"X","X","X","X"]
[null,"BOYACA","GUAYATA",15325,"4",null,"X","X","X","X"]
[null,"BOYACA","GsICAN",15332,"4",null,"X","X","X","X"]
[null,"BOYACA","IZA",15362,"Otros",null,"X","X","X","X"]
[null,"BOYACA","JENESANO",15367,"4",null,"X","X","X","X"]
[null,"BOYACA","JERICO",15368,"Otros",null,"X","X","X"]
[null,"BOYACA","LABRANZAGRANDE",15377,"4",null,"X","X","X","X"]
[null,"BOYACA","LA CAPILLA",15380,"Otros",null,"X","X","X","X"]
[null,"BOYACA","LA VICTORIA",15401,"Otros",null,"X","X","X"]
[null,"BOYACA","LA UVITA",15403,"4",null,"X","X","X","X"]
[null,"BOYACA","VILLA DE LEYVA",15407,"2",null,"X","X","X","X"]
[null,"BOYACA","MACANAL",15425,"4",null,"X","X","X","X"]
[null,"BOYACA","MARIPI",15442,"Otros",null,"X","X","X","X"]
[null,"BOYACA","MIRAFLORES",15455,"4",null,"X","X","X","X"]
[null,"BOYACA","MONGUA",15464,"Otros",null,"X","X","X","X"]
[null,"BOYACA","MONGUI",15466,"Otros",null,"X","X","X"]
[null,"BOYACA","MONIQUIRA",15469,"3",null,"X","X","X","X"]
[null,"BOYACA","MOTAVITA",15476,"Otros",null,"X","X","X","X"]
[null,"BOYACA","MUZO",15480,"4",null,"X","X","X","X"]
[null,"BOYACA","NOBSA",15491,"Otros",null,"X","X","X","X"]
[null,"BOYACA","NUEVO COLON",15494,"4",null,"X","X","X","X"]
[null,"BOYACA","OICATA",15500,"Otros",null,"X","X","X","X"]
[null,"BOYACA","OTANCHE",15507,"4",null,"X","X","X","X"]
[null,"BOYACA","PACHAVITA",15511,"Otros",null,"X","X","X"]
[null,"BOYACA","PAEZ",15514,"4",null,"X","X","X","X"]
[null,"BOYACA","PAIPA",15516,"2","X","X","X","X","X"]
[null,"BOYACA","PAJARITO",15518,"4",null,"X","X","X","X"]
[null,"BOYACA","PANQUEBA",15522,"Otros",null,"X","X","X","X"]
[null,"BOYACA","PAUNA",15531,"4",null,"X","X","X","X"]
[null,"BOYACA","PAYA",15533,"Otros",null,"X","X","X","X"]
[null,"BOYACA","PAZ DE RIO",15537,"4",null,"X","X","X","X"]
[null,"BOYACA","PESCA",15542,"4",null,"X","X","X","X"]
[null,"BOYACA","PISBA",15550,"Otros",null,"X","X","X","X"]
[null,"BOYACA","PUERTO BOYACA",15572,"3",null,"X","X","X","X"]
[null,"BOYACA","QUIPAMA",15580,"Otros",null,"X","X","X"]
[null,"BOYACA","RAMIRIQUI",15599,"3",null,"X","X","X","X"]
[null,"BOYACA","RAQUIRA",15600,"Otros",null,"X","X","X","X"]
[null,"BOYACA","RONDON",15621,"Otros",null,"X","X","X"]
[null,"BOYACA","SABOYA",15632,"4",null,"X","X","X","X"]
[null,"BOYACA","SACHICA",15638,"Otros",null,"X","X","X","X"]
[null,"BOYACA","SAMACA",15646,"3",null,"X","X","X","X"]
[null,"BOYACA","SAN EDUARDO",15660,"Otros",null,"X","X","X","X"]
[null,"BOYACA","SAN JOSE DE PARE",15664,"4",null,"X","X","X","X"]
[null,"BOYACA","SAN LUIS DE GACENO",15667,"4",null,"X","X","X","X"]
[null,"BOYACA","SAN MATEO",15673,"4",null,"X","X","X","X"]
[null,"BOYACA","SAN MIGUEL DE SEMA",15676,"Otros",null,"X","X","X","X"]
[null,"BOYACA","SAN PABLO DE BORBUR",15681,"Otros",null,"X","X","X"]
[null,"BOYACA","SANTANA",15686,"3",null,"X","X","X","X"]
[null,"BOYACA","SANTA MARIA",15690,"Otros",null,"X","X","X","X"]
[null,"BOYACA","SANTA ROSA DE VITERBO",15693,"3",null,"X","X","X","X"]
[null,"BOYACA","SANTA SOFIA",15696,"4",null,"X","X","X","X"]
[null,"BOYACA","SATIVANORTE",15720,"4",null,"X","X","X","X"]
[null,"BOYACA","SATIVASUR",15723,"Otros",null,"X","X","X","X"]
[null,"BOYACA","SIACHOQUE",15740,"Otros",null,"X","X","X","X"]
[null,"BOYACA","SOATA",15753,"4",null,"X","X","X","X"]
[null,"BOYACA","SOCOTA",15755,"4",null,"X","X","X","X"]
[null,"BOYACA","SOCHA",15757,"3",null,"X","X","X","X"]
[null,"BOYACA","SOGAMOSO",15759,"1","X","X","X","X","X"]
[null,"BOYACA","SOMONDOCO",15761,"4",null,"X","X","X","X"]
[null,"BOYACA","SORA",15762,"Otros",null,"X","X","X","X"]
[null,"BOYACA","SOTAQUIRA",15763,"4",null,"X","X","X","X"]
[null,"BOYACA","SORACA",15764,"Otros",null,"X","X","X","X"]
[null,"BOYACA","SUSACON",15774,"4",null,"X","X","X","X"]
[null,"BOYACA","SUTAMARCHAN",15776,"4",null,"X","X","X","X"]
[null,"BOYACA","SUTATENZA",15778,"Otros",null,"X","X","X","X"]
[null,"BOYACA","TASCO",15790,"Otros",null,"X","X","X","X"]
[null,"BOYACA","TENZA",15798,"4",null,"X","X","X","X"]
[null,"BOYACA","TIBANA",15804,"4",null,"X","X","X","X"]
[null,"BOYACA","TIBASOSA",15806,"Otros",null,"X","X","X","X"]
[null,"BOYACA","TINJACA",15808,"Otros",null,"X","X","X","X"]
[null,"BOYACA","TIPACOQUE",15810,"4",null,"X","X","X","X"]
[null,"BOYACA","TOCA",15814,"4",null,"X","X","X","X"]
[null,"BOYACA","TOGsI",15816,"4",null,"X","X","X","X"]
[null,"BOYACA","TOPAGA",15820,"Otros",null,"X","X","X","X"]
[null,"BOYACA","TOTA",15822,"Otros",null,"X","X","X","X"]
[null,"BOYACA","TUNUNGUA",15832,"Otros",null,"X","X","X","X"]
[null,"BOYACA","TURMEQUE",15835,"4",null,"X","X","X","X"]
[null,"BOYACA","TUTA",15837,"4",null,"X","X","X","X"]
[null,"BOYACA","TUTAZA",15839,"Otros",null,"X","X","X","X"]
[null,"BOYACA","UMBITA",15842,"4",null,"X","X","X","X"]
[null,"BOYACA","VENTAQUEMADA",15861,"4",null,"X","X","X","X"]
[null,"BOYACA","VIRACACHA",15879,"Otros",null,"X","X","X","X"]
[null,"BOYACA","ZETAQUIRA",15897,"4",null,"X","X","X","X"]
[null,"CALDAS","MANIZALES",17001,"1","X","X","X","X","X"]
[null,"CALDAS","AGUADAS",17013,"3","X","X","X","X","X"]
[null,"CALDAS","ANSERMA",17042,"Otros",null,"X","X","X","X"]
[null,"CALDAS","ARANZAZU",17050,"3",null,"X","X","X","X"]
[null,"CALDAS","BELALCAZAR",17088,"4",null,"X","X","X","X"]
[null,"CALDAS","CHINCHINA",17174,"Otros","X","X","X","X","X"]
[null,"CALDAS","FILADELFIA",17272,"Otros",null,"X","X","X","X"]
[null,"CALDAS","LA DORADA",17380,"Otros","X","X","X","X","X"]
[null,"CALDAS","LA MERCED",17388,"4",null,"X","X","X","X"]
[null,"CALDAS","MANZANARES",17433,"Otros",null,"X","X","X","X"]
[null,"CALDAS","MARMATO",17442,"4",null,"X","X","X","X"]
[null,"CALDAS","MARQUETALIA",17444,"4",null,"X","X","X","X"]
[null,"CALDAS","MARULANDA",17446,"4",null,"X","X","X","X"]
[null,"CALDAS","NEIRA",17486,"3",null,"X","X","X","X"]
[null,"CALDAS","NORCASIA",17495,"4",null,"X","X","X","X"]
[null,"CALDAS","PACORA",17513,"3",null,"X","X","X","X"]
[null,"CALDAS","PALESTINA",17524,"4",null,"X","X","X","X"]
[null,"CALDAS","PENSILVANIA",17541,"4",null,"X","X","X","X"]
[null,"CALDAS","RIOSUCIO",17614,"4","X","X","X","X","X"]
[null,"CALDAS","RISARALDA",17616,"4",null,"X","X","X","X"]
[null,"CALDAS","SALAMINA",17653,"4","X","X","X","X","X"]
[null,"CALDAS","SAMANA",17662,"4",null,"X","X","X","X"]
[null,"CALDAS","SAN JOSE",17665,"4",null,"X","X","X","X"]
[null,"CALDAS","SUPIA",17777,"Otros",null,"X","X","X","X"]
[null,"CALDAS","VICTORIA",17867,"4",null,"X","X","X","X"]
[null,"CALDAS","VILLAMARIA",17873,"Otros",null,"X","X","X","X"]
[null,"CALDAS","VITERBO",17877,"4",null,"X","X","X","X"]
[null,"CAQUETA","FLORENCIA",18001,"1","X","X","X","X","X"]
[null,"CAQUETA","ALBANIA",18029,"3",null,"X","X","X","X"]
[null,"CAQUETA","BELEN DE LOS ANDAQUIES",18094,"4",null,"X","X","X","X"]
[null,"CAQUETA","CARTAGENA DEL CHAIRA",18150,"4",null,"X","X","X","X"]
[null,"CAQUETA","CURILLO",18205,"Otros",null,"X","X","X","X"]
[null,"CAQUETA","EL DONCELLO",18247,"3",null,"X","X","X","X"]
[null,"CAQUETA","EL PAUJIL",18256,"4",null,"X","X","X","X"]
[null,"CAQUETA","LA MONTAÑITA",18410,"4",null,"X","X","X","X"]
[null,"CAQUETA","MILAN",18460,"4",null,"X","X","X","X"]
[null,"CAQUETA","MORELIA",18479,"Otros",null,"X","X","X","X"]
[null,"CAQUETA","PUERTO RICO",18592,"4",null,"X","X","X","X"]
[null,"CAQUETA","SAN JOSE DEL FRAGUA",18610,"Otros",null,"X","X","X"]
[null,"CAQUETA","SAN VICENTE DEL CAGUAN",18753,"3",null,"X","X","X","X"]
[null,"CAQUETA","SOLANO",18756,"4",null,"X","X","X"]
[null,"CAQUETA","SOLITA",18785,"Otros",null,"X","X","X","X"]
[null,"CAQUETA","VALPARAISO",18860,"4",null,"X","X","X","X"]
[null,"CAUCA","POPAYAN",19001,"1","X","X","X","X","X"]
[null,"CAUCA","ALMAGUER",19022,"4",null,"X","X","X"]
[null,"CAUCA","ARGELIA",19050,"4",null,"X","X","X","X"]
[null,"CAUCA","BALBOA",19075,"4",null,"X","X","X","X"]
[null,"CAUCA","BOLIVAR",19100,"4",null,"X","X","X","X"]
[null,"CAUCA","BUENOS AIRES",19110,"4",null,"X","X","X","X"]
[null,"CAUCA","CAJIBIO",19130,"4",null,"X","X","X","X"]
[null,"CAUCA","CALDONO",19137,"4",null,"X","X","X","X"]
[null,"CAUCA","CALOTO",19142,"4",null,"X","X","X","X"]
[null,"CAUCA","CORINTO",19212,"4",null,"X","X","X","X"]
[null,"CAUCA","EL TAMBO",19256,"4",null,"X","X","X","X"]
[null,"CAUCA","FLORENCIA",19290,"Otros",null,"X","X","X","X"]
[null,"CAUCA","GUACHENE",19300,"Otros",null,"X","X","X","X"]
[null,"CAUCA","GUAPI",19318,"4",null,"X","X","X","X"]
[null,"CAUCA","INZA",19355,"4",null,"X","X","X","X"]
[null,"CAUCA","JAMBALO",19364,"4",null,"X","X","X","X"]
[null,"CAUCA","LA SIERRA",19392,"4",null,"X","X","X","X"]
[null,"CAUCA","LA VEGA",19397,"4",null,"X","X","X","X"]
[null,"CAUCA","LOPEZ",19418,"4",null,"X","X","X","X"]
[null,"CAUCA","MERCADERES",19450,"4",null,"X","X","X","X"]
[null,"CAUCA","MIRANDA",19455,"3",null,"X","X","X","X"]
[null,"CAUCA","MORALES",19473,"4",null,"X","X","X","X"]
[null,"CAUCA","PADILLA",19513,"4",null,"X","X","X","X"]
[null,"CAUCA","PAEZ",19517,"4",null,"X","X","X","X"]
[null,"CAUCA","PATIA",19532,"3",null,"X","X","X","X"]
[null,"CAUCA","PIAMONTE",19533,"Otros",null,"X","X","X","X"]
[null,"CAUCA","PIENDAMO",19548,"4",null,"X","X","X","X"]
[null,"CAUCA","PUERTO TEJADA",19573,"3",null,"X","X","X","X"]
[null,"CAUCA","PURACE",19585,"4",null,"X","X","X","X"]
[null,"CAUCA","ROSAS",19622,"Otros",null,"X","X","X","X"]
[null,"CAUCA","SAN SEBASTIAN",19693,"4",null,"X","X","X","X"]
[null,"CAUCA","SANTANDER DE QUILICHAO",19698,"3",null,"X","X","X","X"]
[null,"CAUCA","SANTA ROSA",19701,"Otros",null,null,"X","X"]
[null,"CAUCA","SILVIA",19743,"4",null,"X","X","X","X"]
[null,"CAUCA","SOTARA",19760,"4",null,null,"X","X","X"]
[null,"CAUCA","SUAREZ",19780,"4",null,"X","X","X","X"]
[null,"CAUCA","SUCRE",19785,"Otros",null,"X","X","X","X"]
[null,"CAUCA","TIMBIO",19807,"4",null,"X","X","X","X"]
[null,"CAUCA","TIMBIQUI",19809,"4",null,"X","X","X","X"]
[null,"CAUCA","TORIBIO",19821,"4",null,"X","X","X","X"]
[null,"CAUCA","TOTORO",19824,"4",null,"X","X","X","X"]
[null,"CAUCA","VILLA RICA",19845,"Otros",null,"X","X","X","X"]
[null,"CESAR","VALLEDUPAR",20001,"1","X","X","X","X","X"]
[null,"CESAR","AGUACHICA",20011,"3",null,"X","X","X","X"]
[null,"CESAR","AGUSTIN CODAZZI",20013,"3",null,"X","X","X","X"]
[null,"CESAR","ASTREA",20032,"4",null,"X","X","X","X"]
[null,"CESAR","BECERRIL",20045,"4",null,"X","X","X","X"]
[null,"CESAR","BOSCONIA",20060,"3",null,"X","X","X","X"]
[null,"CESAR","CHIMICHAGUA",20175,"4",null,"X","X","X","X"]
[null,"CESAR","CHIRIGUANA",20178,"3",null,"X","X","X","X"]
[null,"CESAR","CURUMANI",20228,"Otros",null,"X","X","X","X"]
[null,"CESAR","EL COPEY",20238,"4",null,"X","X","X","X"]
[null,"CESAR","EL PASO",20250,"Otros",null,"X","X","X","X"]
[null,"CESAR","GAMARRA",20295,"Otros",null,"X","X","X","X"]
[null,"CESAR","GONZALEZ",20310,"Otros",null,"X","X","X","X"]
[null,"CESAR","LA GLORIA",20383,"4",null,"X","X","X","X"]
[null,"CESAR","LA JAGUA DE IBIRICO",20400,"3",null,"X","X","X","X"]
[null,"CESAR","MANAURE",20443,"4",null,"X","X","X","X"]
[null,"CESAR","PAILITAS",20517,"4",null,"X","X","X","X"]
[null,"CESAR","PELAYA",20550,"4",null,"X","X","X","X"]
[null,"CESAR","PUEBLO BELLO",20570,"Otros",null,"X","X","X","X"]
[null,"CESAR","RIO DE ORO",20614,"4",null,"X","X","X","X"]
[null,"CESAR","LA PAZ",20621,"4",null,"X","X","X","X"]
[null,"CESAR","SAN ALBERTO",20710,"3",null,"X","X","X","X"]
[null,"CESAR","SAN DIEGO",20750,"4",null,"X","X","X","X"]
[null,"CESAR","SAN MARTIN",20770,"Otros",null,"X","X","X","X"]
[null,"CESAR","TAMALAMEQUE",20787,"4",null,"X","X","X","X"]
[null,"CORDOBA","MONTERIA",23001,"1","X","X","X","X","X"]
[null,"CORDOBA","AYAPEL",23068,"3",null,"X","X","X","X"]
[null,"CORDOBA","BUENAVISTA",23079,"4",null,"X","X","X","X"]
[null,"CORDOBA","CANALETE",23090,"4",null,"X","X","X","X"]
[null,"CORDOBA","CERETE",23162,"1",null,"X","X","X","X"]
[null,"CORDOBA","CHIMA",23168,"4",null,"X","X","X","X"]
[null,"CORDOBA","CHINU",23182,"Otros",null,"X","X","X","X"]
[null,"CORDOBA","CIENAGA DE ORO",23189,"3",null,"X","X","X","X"]
[null,"CORDOBA","COTORRA",23300,"Otros",null,"X","X","X","X"]
[null,"CORDOBA","LA APARTADA",23350,"Otros",null,"X","X","X","X"]
[null,"CORDOBA","LORICA",23417,"1",null,"X","X","X","X"]
[null,"CORDOBA","LOS CORDOBAS",23419,"4",null,"X","X","X","X"]
[null,"CORDOBA","MOMIL",23464,"4",null,"X","X","X","X"]
[null,"CORDOBA","MONTELIBANO",23466,"3",null,"X","X","X","X"]
[null,"CORDOBA","MOÑITOS",23500,"3",null,"X","X","X","X"]
[null,"CORDOBA","PLANETA RICA",23555,"2",null,"X","X","X","X"]
[null,"CORDOBA","PUEBLO NUEVO",23570,"4",null,"X","X","X","X"]
[null,"CORDOBA","PUERTO ESCONDIDO",23574,"3",null,"X","X","X","X"]
[null,"CORDOBA","PUERTO LIBERTADOR",23580,"3",null,"X","X","X","X"]
[null,"CORDOBA","PURISIMA",23586,"4",null,"X","X","X","X"]
[null,"CORDOBA","SAHAGUN",23660,"3",null,"X","X","X","X"]
[null,"CORDOBA","SAN ANDRES SOTAVENTO",23670,"3",null,"X","X","X","X"]
[null,"CORDOBA","SAN ANTERO",23672,"3",null,"X","X","X","X"]
[null,"CORDOBA","SAN BERNARDO DEL VIENTO",23675,"4",null,"X","X","X","X"]
[null,"CORDOBA","SAN CARLOS",23678,"4",null,"X","X","X","X"]
[null,"CORDOBA","SAN PELAYO",23686,"3",null,"X","X","X","X"]
[null,"CORDOBA","TIERRALTA",23807,"3",null,"X","X","X","X"]
[null,"CORDOBA","VALENCIA",23855,"4",null,"X","X","X","X"]
[null,"CORDOBA","SAN JOSE DE URE",23682,"Otros",null,"X","X","X","X"]
[null,"CORDOBA","TUCHIN",23815,"Otros",null,"X","X","X","X"]
[null,"CUNDINAMARCA","AGUA DE DIOS",25001,"3",null,"X","X","X","X"]
[null,"CUNDINAMARCA","ALBAN",25019,"Otros",null,"X","X","X"]
[null,"CUNDINAMARCA","ANAPOIMA",25035,"3",null,"X","X","X","X"]
[null,"CUNDINAMARCA","ANOLAIMA",25040,"3",null,"X","X","X","X"]
[null,"CUNDINAMARCA","ARBELAEZ",25053,"3",null,"X","X","X","X"]
[null,"CUNDINAMARCA","BELTRAN",25086,"Otros",null,null,"X","X","X"]
[null,"CUNDINAMARCA","BITUIMA",25095,"Otros",null,null,"X","X"]
[null,"CUNDINAMARCA","BOJACA",25099,"Otros",null,"X","X","X","X"]
[null,"CUNDINAMARCA","CABRERA",25120,"4",null,"X","X","X","X"]
[null,"CUNDINAMARCA","CACHIPAY",25123,"4",null,"X","X","X","X"]
[null,"CUNDINAMARCA","CAJICA",25126,"Otros",null,"X","X","X","X"]
[null,"CUNDINAMARCA","CAPARRAPI",25148,"4",null,"X","X","X","X"]
[null,"CUNDINAMARCA","CAQUEZA",25151,"2",null,"X","X","X","X"]
[null,"CUNDINAMARCA","CARMEN DE CARUPA",25154,"4",null,"X","X","X","X"]
[null,"CUNDINAMARCA","CHAGUANI",25168,"4",null,"X","X","X","X"]
[null,"CUNDINAMARCA","CHIA",25175,"1","X","X","X","X","X"]
[null,"CUNDINAMARCA","CHIPAQUE",25178,"Otros",null,"X","X","X","X"]
[null,"CUNDINAMARCA","CHOACHI",25181,"3",null,"X","X","X","X"]
[null,"CUNDINAMARCA","CHOCONTA",25183,"4",null,"X","X","X","X"]
[null,"CUNDINAMARCA","COGUA",25200,"Otros",null,"X","X","X","X"]
[null,"CUNDINAMARCA","COTA",25214,"Otros","X","X","X","X","X"]
[null,"CUNDINAMARCA","CUCUNUBA",25224,"Otros",null,"X","X","X","X"]
[null,"CUNDINAMARCA","EL COLEGIO",25245,"3",null,"X","X","X","X"]
[null,"CUNDINAMARCA","EL PEÑON",25258,"Otros",null,"X","X","X"]
[null,"CUNDINAMARCA","EL ROSAL",25260,"Otros",null,"X","X","X","X"]
[null,"CUNDINAMARCA","FACATATIVA",25269,"1","X","X","X","X","X"]
[null,"CUNDINAMARCA","FOMEQUE",25279,"3",null,"X","X","X","X"]
[null,"CUNDINAMARCA","FOSCA",25281,"4",null,"X","X","X","X"]
[null,"CUNDINAMARCA","FUNZA",25286,"1",null,"X","X","X","X"]
[null,"CUNDINAMARCA","FUQUENE",25288,"Otros",null,null,"X","X","X"]
[null,"CUNDINAMARCA","FUSAGASUGA",25290,"1","X","X","X","X","X"]
[null,"CUNDINAMARCA","GACHALA",25293,"4",null,"X","X","X","X"]
[null,"CUNDINAMARCA","GACHANCIPA",25295,"Otros",null,"X","X","X","X"]
[null,"CUNDINAMARCA","GACHETA",25297,"2",null,"X","X","X","X"]
[null,"CUNDINAMARCA","GAMA",25299,"Otros",null,"X","X","X"]
[null,"CUNDINAMARCA","GIRARDOT",25307,"Otros","X","X","X","X","X"]
[null,"CUNDINAMARCA","GRANADA",25312,"Otros",null,"X","X","X","X"]
[null,"CUNDINAMARCA","GUACHETA",25317,"Otros",null,"X","X","X","X"]
[null,"CUNDINAMARCA","GUADUAS",25320,"2",null,"X","X","X","X"]
[null,"CUNDINAMARCA","GUASCA",25322,"3",null,"X","X","X","X"]
[null,"CUNDINAMARCA","GUATAQUI",25324,"Otros",null,"X","X","X"]
[null,"CUNDINAMARCA","GUATAVITA",25326,"4",null,"X","X","X","X"]
[null,"CUNDINAMARCA","GUAYABAL DE SIQUIMA",25328,"4",null,"X","X","X","X"]
[null,"CUNDINAMARCA","GUAYABETAL",25335,"Otros",null,"X","X","X","X"]
[null,"CUNDINAMARCA","GUTIERREZ",25339,"4",null,"X","X","X","X"]
[null,"CUNDINAMARCA","JERUSALEN",25368,"Otros",null,"X","X","X"]
[null,"CUNDINAMARCA","JUNIN",25372,"4",null,"X","X","X","X"]
[null,"CUNDINAMARCA","LA CALERA",25377,"3",null,"X","X","X","X"]
[null,"CUNDINAMARCA","LA MESA",25386,"2",null,"X","X","X","X"]
[null,"CUNDINAMARCA","LA PALMA",25394,"4",null,"X","X","X","X"]
[null,"CUNDINAMARCA","LA PEÑA",25398,"4",null,"X","X","X","X"]
[null,"CUNDINAMARCA","LA VEGA",25402,"4",null,"X","X","X","X"]
[null,"CUNDINAMARCA","LENGUAZAQUE",25407,"4",null,"X","X","X","X"]
[null,"CUNDINAMARCA","MACHETA",25426,"4",null,"X","X","X","X"]
[null,"CUNDINAMARCA","MADRID",25430,"Otros","X","X","X","X","X"]
[null,"CUNDINAMARCA","MANTA",25436,"4",null,"X","X","X","X"]
[null,"CUNDINAMARCA","MEDINA",25438,"4",null,"X","X","X","X"]
[null,"CUNDINAMARCA","MOSQUERA",25473,"Otros","X","X","X","X","X"]
[null,"CUNDINAMARCA","NARIÑO",25483,"Otros",null,null,"X","X"]
[null,"CUNDINAMARCA","NEMOCON",25486,"Otros",null,"X","X","X","X"]
[null,"CUNDINAMARCA","NILO",25488,"Otros",null,"X","X","X"]
[null,"CUNDINAMARCA","NIMAIMA",25489,"Otros",null,"X","X","X","X"]
[null,"CUNDINAMARCA","NOCAIMA",25491,"4",null,"X","X","X","X"]
[null,"CUNDINAMARCA","VENECIA",25506,"4",null,"X","X","X","X"]
[null,"CUNDINAMARCA","PACHO",25513,"Otros",null,"X","X","X","X"]
[null,"CUNDINAMARCA","PAIME",25518,"4",null,"X","X","X","X"]
[null,"CUNDINAMARCA","PANDI",25524,"4",null,"X","X","X","X"]
[null,"CUNDINAMARCA","PARATEBUENO",25530,"4",null,"X","X","X","X"]
[null,"CUNDINAMARCA","PASCA",25535,"4",null,"X","X","X","X"]
[null,"CUNDINAMARCA","PUERTO SALGAR",25572,"3",null,"X","X","X","X"]
[null,"CUNDINAMARCA","PULI",25580,"Otros",null,"X","X","X"]
[null,"CUNDINAMARCA","QUEBRADANEGRA",25592,"Otros",null,"X","X","X"]
[null,"CUNDINAMARCA","QUETAME",25594,"4",null,"X","X","X","X"]
[null,"CUNDINAMARCA","QUIPILE",25596,"4",null,"X","X","X","X"]
[null,"CUNDINAMARCA","APULO",25599,"4",null,"X","X","X","X"]
[null,"CUNDINAMARCA","RICAURTE",25612,"Otros",null,"X","X","X","X"]
[null,"CUNDINAMARCA","SAN ANTONIO DEL TEQUENDAMA",25645,"Otros",null,"X","X","X","X"]
[null,"CUNDINAMARCA","SAN BERNARDO",25649,"4",null,"X","X","X","X"]
[null,"CUNDINAMARCA","SAN CAYETANO",25653,"4",null,"X","X","X","X"]
[null,"CUNDINAMARCA","SAN FRANCISCO",25658,"4",null,"X","X","X","X"]
[null,"CUNDINAMARCA","SAN JUAN DE RIO SECO",25662,"4",null,"X","X","X","X"]
[null,"CUNDINAMARCA","SASAIMA",25718,"4",null,"X","X","X","X"]
[null,"CUNDINAMARCA","SESQUILE",25736,"Otros",null,"X","X","X","X"]
[null,"CUNDINAMARCA","SIBATE",25740,"Otros",null,"X","X","X","X"]
[null,"CUNDINAMARCA","SILVANIA",25743,"4",null,"X","X","X","X"]
[null,"CUNDINAMARCA","SIMIJACA",25745,"3",null,"X","X","X","X"]
[null,"CUNDINAMARCA","SOACHA",25754,"Otros","X","X","X","X","X"]
[null,"CUNDINAMARCA","SOPO",25758,"2",null,"X","X","X","X"]
[null,"CUNDINAMARCA","SUBACHOQUE",25769,"2",null,"X","X","X","X"]
[null,"CUNDINAMARCA","SUESCA",25772,"4",null,"X","X","X","X"]
[null,"CUNDINAMARCA","SUPATA",25777,"4",null,"X","X","X","X"]
[null,"CUNDINAMARCA","SUSA",25779,"4",null,"X","X","X","X"]
[null,"CUNDINAMARCA","SUTATAUSA",25781,"Otros",null,"X","X","X","X"]
[null,"CUNDINAMARCA","TABIO",25785,"Otros",null,"X","X","X","X"]
[null,"CUNDINAMARCA","TAUSA",25793,"Otros",null,"X","X","X","X"]
[null,"CUNDINAMARCA","TENA",25797,"4",null,"X","X","X"]
[null,"CUNDINAMARCA","TENJO",25799,"3",null,"X","X","X","X"]
[null,"CUNDINAMARCA","TIBACUY",25805,"Otros",null,"X","X","X","X"]
[null,"CUNDINAMARCA","TIBIRITA",25807,"Otros",null,"X","X","X"]
[null,"CUNDINAMARCA","TOCAIMA",25815,"Otros",null,"X","X","X","X"]
[null,"CUNDINAMARCA","TOCANCIPA",25817,"Otros",null,"X","X","X","X"]
[null,"CUNDINAMARCA","TOPAIPI",25823,"4",null,"X","X","X","X"]
[null,"CUNDINAMARCA","UBALA",25839,"4",null,"X","X","X","X"]
[null,"CUNDINAMARCA","UBAQUE",25841,"Otros",null,"X","X","X"]
[null,"CUNDINAMARCA","VILLA DE SAN DIEGO DE UBATE",25843,"1","X","X","X","X","X"]
[null,"CUNDINAMARCA","UNE",25845,"4",null,"X","X","X","X"]
[null,"CUNDINAMARCA","UTICA",25851,"4",null,"X","X","X","X"]
[null,"CUNDINAMARCA","VERGARA",25862,"4",null,"X","X","X","X"]
[null,"CUNDINAMARCA","VIANI",25867,"Otros",null,"X","X","X"]
[null,"CUNDINAMARCA","VILLAGOMEZ",25871,"4",null,"X","X","X","X"]
[null,"CUNDINAMARCA","VILLAPINZON",25873,"3",null,"X","X","X","X"]
[null,"CUNDINAMARCA","VILLETA",25875,"Otros",null,"X","X","X","X"]
[null,"CUNDINAMARCA","VIOTA",25878,"4",null,"X","X","X","X"]
[null,"CUNDINAMARCA","YACOPI",25885,"4",null,"X","X","X","X"]
[null,"CUNDINAMARCA","ZIPACON",25898,"Otros",null,null,"X","X"]
[null,"CUNDINAMARCA","ZIPAQUIRA",25899,"1","X","X","X","X","X"]
[null,"CHOCO","QUIBDO",27001,"1","X","X","X","X","X"]
[null,"CHOCO","ACANDI",27006,"4",null,"X","X","X","X"]
[null,"CHOCO","ALTO BAUDO",27025,"Otros",null,"X","X","X"]
[null,"CHOCO","ATRATO",27050,"Otros",null,"X","X","X","X"]
[null,"CHOCO","BAGADO",27073,"Otros",null,"X","X","X","X"]
[null,"CHOCO","BAHIA SOLANO",27075,"4",null,"X","X","X","X"]
[null,"CHOCO","BAJO BAUDO",27077,"4",null,"X","X","X"]
[null,"CHOCO","BOJAYA",27099,"Otros",null,null,"X","X","X"]
[null,"CHOCO","EL CANTON DEL SAN PABLO",27135,"Otros",null,"X","X","X"]
[null,"CHOCO","CARMEN DEL DARIEN",27150,"Otros",null,"X","X","X","X"]
[null,"CHOCO","CERTEGUI",27160,"Otros",null,"X","X","X","X"]
[null,"CHOCO","CONDOTO",27205,"4",null,"X","X","X","X"]
[null,"CHOCO","EL CARMEN DE ATRATO",27245,"4",null,"X","X","X","X"]
[null,"CHOCO","EL LITORAL DEL SAN JUAN",27250,"Otros",null,null,"X","X"]
[null,"CHOCO","ISTMINA",27361,"Otros",null,"X","X","X","X"]
[null,"CHOCO","JURADO",27372,"Otros",null,"X","X","X"]
[null,"CHOCO","LLORO",27413,"Otros",null,"X","X","X","X"]
[null,"CHOCO","MEDIO ATRATO",27425,"Otros",null,"X","X","X"]
[null,"CHOCO","MEDIO BAUDO",27430,"Otros",null,"X","X","X","X"]
[null,"CHOCO","MEDIO SAN JUAN",27450,"Otros",null,"X","X","X"]
[null,"CHOCO","NOVITA",27491,"Otros",null,"X","X","X","X"]
[null,"CHOCO","NUQUI",27495,"Otros",null,"X","X","X","X"]
[null,"CHOCO","RIO IRO",27580,"Otros",null,"X","X","X"]
[null,"CHOCO","RIO QUITO",27600,"Otros",null,"X","X","X"]
[null,"CHOCO","RIOSUCIO",27615,"4",null,"X","X","X","X"]
[null,"CHOCO","SAN JOSE DEL PALMAR",27660,"Otros",null,"X","X","X","X"]
[null,"CHOCO","SIPI",27745,"Otros",null,"X","X","X","X"]
[null,"CHOCO","TADO",27787,"4",null,"X","X","X","X"]
[null,"CHOCO","UNGUIA",27800,"4",null,"X","X","X","X"]
[null,"CHOCO","UNION PANAMERICANA",27810,"Otros",null,"X","X","X","X"]
[null,"HUILA","NEIVA",41001,"1","X","X","X","X","X"]
[null,"HUILA","ACEVEDO",41006,"4",null,"X","X","X","X"]
[null,"HUILA","AGRADO",41013,"4",null,"X","X","X","X"]
[null,"HUILA","AIPE",41016,"3",null,"X","X","X","X"]
[null,"HUILA","ALGECIRAS",41020,"4",null,"X","X","X","X"]
[null,"HUILA","ALTAMIRA",41026,"4",null,"X","X","X","X"]
[null,"HUILA","BARAYA",41078,"4",null,"X","X","X","X"]
[null,"HUILA","CAMPOALEGRE",41132,"4","X","X","X","X","X"]
[null,"HUILA","COLOMBIA",41206,"4",null,"X","X","X","X"]
[null,"HUILA","ELIAS",41244,"4",null,"X","X","X","X"]
[null,"HUILA","GARZON",41298,"3","X","X","X","X","X"]
[null,"HUILA","GIGANTE",41306,"3",null,"X","X","X","X"]
[null,"HUILA","GUADALUPE",41319,"4",null,"X","X","X","X"]
[null,"HUILA","HOBO",41349,"4",null,"X","X","X","X"]
[null,"HUILA","IQUIRA",41357,"4",null,"X","X","X","X"]
[null,"HUILA","ISNOS",41359,"4",null,"X","X","X","X"]
[null,"HUILA","LA ARGENTINA",41378,"4",null,"X","X","X","X"]
[null,"HUILA","LA PLATA",41396,"4","X","X","X","X","X"]
[null,"HUILA","NATAGA",41483,"4",null,"X","X","X","X"]
[null,"HUILA","OPORAPA",41503,"4",null,"X","X","X","X"]
[null,"HUILA","PAICOL",41518,"4",null,"X","X","X","X"]
[null,"HUILA","PALERMO",41524,"Otros",null,"X","X","X","X"]
[null,"HUILA","PALESTINA",41530,"4",null,"X","X","X","X"]
[null,"HUILA","PITAL",41548,"4",null,"X","X","X","X"]
[null,"HUILA","PITALITO",41551,"1","X","X","X","X","X"]
[null,"HUILA","RIVERA",41615,"4",null,"X","X","X","X"]
[null,"HUILA","SALADOBLANCO",41660,"4",null,"X","X","X","X"]
[null,"HUILA","SAN AGUSTIN",41668,"4",null,"X","X","X","X"]
[null,"HUILA","SANTA MARIA",41676,"4",null,"X","X","X","X"]
[null,"HUILA","SUAZA",41770,"4",null,"X","X","X","X"]
[null,"HUILA","TARQUI",41791,"4",null,"X","X","X","X"]
[null,"HUILA","TESALIA",41797,"4",null,"X","X","X","X"]
[null,"HUILA","TELLO",41799,"4",null,"X","X","X","X"]
[null,"HUILA","TERUEL",41801,"4",null,"X","X","X","X"]
[null,"HUILA","TIMANA",41807,"4",null,"X","X","X","X"]
[null,"HUILA","VILLAVIEJA",41872,"4",null,"X","X","X","X"]
[null,"HUILA","YAGUARA",41885,"3",null,"X","X","X","X"]
[null,"LA GUAJIRA","RIOHACHA",44001,"1","X","X","X","X","X"]
[null,"LA GUAJIRA","ALBANIA",44035,"Otros",null,"X","X","X","X"]
[null,"LA GUAJIRA","BARRANCAS",44078,"Otros",null,"X","X","X","X"]
[null,"LA GUAJIRA","DIBULLA",44090,"Otros",null,"X","X","X","X"]
[null,"LA GUAJIRA","DISTRACCION",44098,"Otros",null,"X","X","X","X"]
[null,"LA GUAJIRA","EL MOLINO",44110,"Otros",null,"X","X","X","X"]
[null,"LA GUAJIRA","FONSECA",44279,"Otros",null,"X","X","X","X"]
[null,"LA GUAJIRA","HATONUEVO",44378,"Otros",null,"X","X","X","X"]
[null,"LA GUAJIRA","LA JAGUA DEL PILAR",44420,"Otros",null,"X","X","X"]
[null,"LA GUAJIRA","MAICAO",44430,"3","X","X","X","X","X"]
[null,"LA GUAJIRA","MANAURE",44560,"4",null,"X","X","X","X"]
[null,"LA GUAJIRA","SAN JUAN DEL CESAR",44650,"3",null,"X","X","X","X"]
[null,"LA GUAJIRA","URIBIA",44847,"Otros",null,"X","X","X","X"]
[null,"LA GUAJIRA","URUMITA",44855,"4",null,"X","X","X","X"]
[null,"LA GUAJIRA","VILLANUEVA",44874,"Otros",null,"X","X","X","X"]
[null,"MAGDALENA","SANTA MARTA",47001,"1","X","X","X","X","X"]
[null,"MAGDALENA","ALGARROBO",47030,"Otros",null,"X","X","X","X"]
[null,"MAGDALENA","ARACATACA",47053,"4","X","X","X","X","X"]
[null,"MAGDALENA","ARIGUANI",47058,"3",null,"X","X","X","X"]
[null,"MAGDALENA","CERRO SAN ANTONIO",47161,"4",null,"X","X","X","X"]
[null,"MAGDALENA","CHIBOLO",47170,"4",null,"X","X","X","X"]
[null,"MAGDALENA","CIENAGA",47189,"2",null,"X","X","X","X"]
[null,"MAGDALENA","CONCORDIA",47205,"Otros",null,"X","X","X","X"]
[null,"MAGDALENA","EL BANCO",47245,"3","X","X","X","X","X"]
[null,"MAGDALENA","EL PIÑON",47258,"Otros",null,"X","X","X","X"]
[null,"MAGDALENA","EL RETEN",47268,"Otros",null,"X","X","X","X"]
[null,"MAGDALENA","FUNDACION",47288,"Otros",null,"X","X","X","X"]
[null,"MAGDALENA","GUAMAL",47318,"4",null,"X","X","X","X"]
[null,"MAGDALENA","NUEVA GRANADA",47460,"Otros",null,"X","X","X","X"]
[null,"MAGDALENA","PEDRAZA",47541,"Otros",null,"X","X","X","X"]
[null,"MAGDALENA","PIJIÑO DEL CARMEN",47545,"Otros",null,"X","X","X","X"]
[null,"MAGDALENA","PIVIJAY",47551,"3",null,"X","X","X","X"]
[null,"MAGDALENA","PLATO",47555,"3",null,"X","X","X","X"]
[null,"MAGDALENA","PUEBLOVIEJO",47570,"Otros",null,"X","X","X","X"]
[null,"MAGDALENA","REMOLINO",47605,"Otros",null,"X","X","X","X"]
[null,"MAGDALENA","SABANAS DE SAN ANGEL",47660,"4",null,"X","X","X","X"]
[null,"MAGDALENA","SALAMINA",47675,"Otros",null,"X","X","X","X"]
[null,"MAGDALENA","SAN SEBASTIAN DE BUENAVISTA",47692,"4",null,"X","X","X","X"]
[null,"MAGDALENA","SAN ZENON",47703,"Otros",null,"X","X","X","X"]
[null,"MAGDALENA","SANTA ANA",47707,"4",null,"X","X","X","X"]
[null,"MAGDALENA","SANTA BARBARA DE PINTO",47720,"Otros",null,"X","X","X","X"]
[null,"MAGDALENA","SITIONUEVO",47745,"Otros",null,"X","X","X","X"]
[null,"MAGDALENA","TENERIFE",47798,"Otros",null,"X","X","X","X"]
[null,"MAGDALENA","ZAPAYAN",47960,"Otros",null,"X","X","X","X"]
[null,"MAGDALENA","ZONA BANANERA",47980,"Otros",null,"X","X","X","X"]
[null,"META","VILLAVICENCIO",50001,"1","X","X","X","X","X"]
[null,"META","ACACIAS",50006,"3",null,"X","X","X","X"]
[null,"META","BARRANCA DE UPIA",50110,"Otros",null,"X","X","X","X"]
[null,"META","CABUYARO",50124,"3",null,"X","X","X","X"]
[null,"META","CASTILLA LA NUEVA",50150,"3",null,"X","X","X","X"]
[null,"META","CUBARRAL",50223,"4",null,"X","X","X","X"]
[null,"META","CUMARAL",50226,"3",null,"X","X","X","X"]
[null,"META","EL CALVARIO",50245,"Otros",null,"X","X","X"]
[null,"META","EL CASTILLO",50251,"4",null,"X","X","X","X"]
[null,"META","EL DORADO",50270,"Otros",null,"X","X","X","X"]
[null,"META","FUENTE DE ORO",50287,"4",null,"X","X","X","X"]
[null,"META","GRANADA",50313,"2","X","X","X","X","X"]
[null,"META","GUAMAL",50318,"4",null,"X","X","X","X"]
[null,"META","MAPIRIPAN",50325,"4",null,"X","X","X","X"]
[null,"META","MESETAS",50330,"4",null,"X","X","X","X"]
[null,"META","LA MACARENA",50350,"4",null,"X","X","X","X"]
[null,"META","URIBE",50370,"Otros",null,"X","X","X","X"]
[null,"META","LEJANIAS",50400,"4",null,"X","X","X","X"]
[null,"META","PUERTO CONCORDIA",50450,"Otros",null,"X","X","X","X"]
[null,"META","PUERTO GAITAN",50568,"3",null,"X","X","X","X"]
[null,"META","PUERTO LOPEZ",50573,"3",null,"X","X","X","X"]
[null,"META","PUERTO LLERAS",50577,"4",null,"X","X","X","X"]
[null,"META","PUERTO RICO",50590,"4",null,"X","X","X","X"]
[null,"META","RESTREPO",50606,"4",null,"X","X","X","X"]
[null,"META","SAN CARLOS DE GUAROA",50680,"4",null,"X","X","X","X"]
[null,"META","SAN JUAN DE ARAMA",50683,"4",null,"X","X","X","X"]
[null,"META","SAN JUANITO",50686,"4",null,"X","X","X","X"]
[null,"META","SAN MARTIN",50689,"3",null,"X","X","X","X"]
[null,"META","VISTAHERMOSA",50711,"4",null,"X","X","X","X"]
[null,"NARIÑO","PASTO",52001,"1","X","X","X","X","X"]
[null,"NARIÑO","ALBAN",52019,"4",null,"X","X","X","X"]
[null,"NARIÑO","ALDANA",52022,"Otros",null,"X","X","X"]
[null,"NARIÑO","ANCUYA",52036,"4",null,"X","X","X","X"]
[null,"NARIÑO","ARBOLEDA",52051,"4",null,"X","X","X","X"]
[null,"NARIÑO","BARBACOAS",52079,"4",null,"X","X","X","X"]
[null,"NARIÑO","BELEN",52083,"4",null,"X","X","X","X"]
[null,"NARIÑO","BUESACO",52110,"4",null,"X","X","X","X"]
[null,"NARIÑO","COLON",52203,"Otros",null,"X","X","X","X"]
[null,"NARIÑO","CONSACA",52207,"4",null,"X","X","X","X"]
[null,"NARIÑO","CONTADERO",52210,"4",null,"X","X","X","X"]
[null,"NARIÑO","CORDOBA",52215,"4",null,"X","X","X","X"]
[null,"NARIÑO","CUASPUD",52224,"Otros",null,"X","X","X","X"]
[null,"NARIÑO","CUMBAL",52227,"4",null,"X","X","X","X"]
[null,"NARIÑO","CUMBITARA",52233,"4",null,"X","X","X","X"]
[null,"NARIÑO","CHACHAGsI",52240,"Otros",null,"X","X","X","X"]
[null,"NARIÑO","EL CHARCO",52250,"4",null,"X","X","X","X"]
[null,"NARIÑO","EL PEÑOL",52254,"Otros",null,"X","X","X","X"]
[null,"NARIÑO","EL ROSARIO",52256,"4",null,"X","X","X","X"]
[null,"NARIÑO","EL TABLON DE GOMEZ",52258,"4",null,"X","X","X","X"]
[null,"NARIÑO","EL TAMBO",52260,"4",null,"X","X","X","X"]
[null,"NARIÑO","FUNES",52287,"4",null,"X","X","X","X"]
[null,"NARIÑO","GUACHUCAL",52317,"4",null,"X","X","X","X"]
[null,"NARIÑO","GUAITARILLA",52320,"4",null,"X","X","X","X"]
[null,"NARIÑO","GUALMATAN",52323,"Otros",null,"X","X","X","X"]
[null,"NARIÑO","ILES",52352,"4",null,"X","X","X","X"]
[null,"NARIÑO","IMUES",52354,"Otros",null,"X","X","X"]
[null,"NARIÑO","IPIALES",52356,"1","X","X","X","X","X"]
[null,"NARIÑO","LA CRUZ",52378,"4",null,"X","X","X","X"]
[null,"NARIÑO","LA FLORIDA",52381,"Otros",null,"X","X","X","X"]
[null,"NARIÑO","LA LLANADA",52385,"Otros",null,"X","X","X","X"]
[null,"NARIÑO","LA TOLA",52390,"Otros",null,"X","X","X","X"]
[null,"NARIÑO","LA UNION",52399,"3",null,"X","X","X","X"]
[null,"NARIÑO","LEIVA",52405,"Otros",null,"X","X","X","X"]
[null,"NARIÑO","LINARES",52411,"4",null,"X","X","X","X"]
[null,"NARIÑO","LOS ANDES",52418,"4",null,"X","X","X","X"]
[null,"NARIÑO","MAGsI",52427,"Otros",null,"X","X","X","X"]
[null,"NARIÑO","MALLAMA",52435,"Otros",null,"X","X","X","X"]
[null,"NARIÑO","MOSQUERA",52473,"Otros",null,"X","X","X","X"]
[null,"NARIÑO","NARIÑO",52480,"Otros",null,"X","X","X"]
[null,"NARIÑO","OLAYA HERRERA",52490,"4",null,"X","X","X","X"]
[null,"NARIÑO","OSPINA",52506,"Otros",null,"X","X","X","X"]
[null,"NARIÑO","FRANCISCO PIZARRO",52520,"Otros",null,"X","X","X"]
[null,"NARIÑO","POLICARPA",52540,"4",null,"X","X","X","X"]
[null,"NARIÑO","POTOSI",52560,"Otros",null,"X","X","X","X"]
[null,"NARIÑO","PROVIDENCIA",52565,"Otros",null,"X","X","X","X"]
[null,"NARIÑO","PUERRES",52573,"4",null,"X","X","X","X"]
[null,"NARIÑO","PUPIALES",52585,"4",null,"X","X","X","X"]
[null,"NARIÑO","RICAURTE",52612,"4",null,"X","X","X","X"]
[null,"NARIÑO","ROBERTO PAYAN",52621,"Otros",null,"X","X","X","X"]
[null,"NARIÑO","SAMANIEGO",52678,"4",null,"X","X","X","X"]
[null,"NARIÑO","SANDONA",52683,"3",null,"X","X","X","X"]
[null,"NARIÑO","SAN BERNARDO",52685,"Otros",null,"X","X","X","X"]
[null,"NARIÑO","SAN LORENZO",52687,"4",null,"X","X","X","X"]
[null,"NARIÑO","SAN PABLO",52693,"4",null,"X","X","X","X"]
[null,"NARIÑO","SAN PEDRO DE CARTAGO",52694,"Otros",null,"X","X","X","X"]
[null,"NARIÑO","SANTA BARBARA",52696,"4",null,"X","X","X","X"]
[null,"NARIÑO","SANTACRUZ",52699,"Otros",null,"X","X","X","X"]
[null,"NARIÑO","SAPUYES",52720,"Otros",null,"X","X","X","X"]
[null,"NARIÑO","TAMINANGO",52786,"4",null,"X","X","X","X"]
[null,"NARIÑO","TANGUA",52788,"Otros",null,"X","X","X","X"]
[null,"NARIÑO","SAN ANDRES DE TUMACO",52835,"3","X","X","X","X","X"]
[null,"NARIÑO","TUQUERRES",52838,"3","X","X","X","X","X"]
[null,"NARIÑO","YACUANQUER",52885,"4",null,"X","X","X","X"]
[null,"N. DE SANTANDER","CUCUTA",54001,"1","X","X","X","X","X"]
[null,"N. DE SANTANDER","ABREGO",54003,"3",null,"X","X","X","X"]
[null,"N. DE SANTANDER","ARBOLEDAS",54051,"4",null,"X","X","X","X"]
[null,"N. DE SANTANDER","BOCHALEMA",54099,"4",null,"X","X","X","X"]
[null,"N. DE SANTANDER","BUCARASICA",54109,"Otros",null,"X","X","X","X"]
[null,"N. DE SANTANDER","CACOTA",54125,"4",null,"X","X","X","X"]
[null,"N. DE SANTANDER","CACHIRA",54128,"4",null,"X","X","X","X"]
[null,"N. DE SANTANDER","CHINACOTA",54172,"4",null,"X","X","X","X"]
[null,"N. DE SANTANDER","CHITAGA",54174,"4",null,"X","X","X","X"]
[null,"N. DE SANTANDER","CONVENCION",54206,"4",null,"X","X","X","X"]
[null,"N. DE SANTANDER","CUCUTILLA",54223,"4",null,"X","X","X","X"]
[null,"N. DE SANTANDER","DURANIA",54239,"4",null,"X","X","X","X"]
[null,"N. DE SANTANDER","EL CARMEN",54245,"3",null,"X","X","X","X"]
[null,"N. DE SANTANDER","EL TARRA",54250,"Otros",null,"X","X","X","X"]
[null,"N. DE SANTANDER","EL ZULIA",54261,"4",null,"X","X","X","X"]
[null,"N. DE SANTANDER","GRAMALOTE",54313,"4",null,"X","X","X"]
[null,"N. DE SANTANDER","HACARI",54344,"4",null,"X","X","X","X"]
[null,"N. DE SANTANDER","HERRAN",54347,"4",null,"X","X","X","X"]
[null,"N. DE SANTANDER","LABATECA",54377,"4",null,"X","X","X","X"]
[null,"N. DE SANTANDER","LA ESPERANZA",54385,"Otros",null,"X","X","X","X"]
[null,"N. DE SANTANDER","LA PLAYA",54398,"Otros",null,"X","X","X","X"]
[null,"N. DE SANTANDER","LOS PATIOS",54405,"Otros",null,"X","X","X","X"]
[null,"N. DE SANTANDER","LOURDES",54418,"4",null,"X","X","X","X"]
[null,"N. DE SANTANDER","MUTISCUA",54480,"4",null,"X","X","X","X"]
[null,"N. DE SANTANDER","OCAÑA",54498,"3","X","X","X","X","X"]
[null,"N. DE SANTANDER","PAMPLONA",54518,"3",null,"X","X","X","X"]
[null,"N. DE SANTANDER","PAMPLONITA",54520,"Otros",null,"X","X","X"]
[null,"N. DE SANTANDER","PUERTO SANTANDER",54553,"Otros",null,"X","X","X","X"]
[null,"N. DE SANTANDER","RAGONVALIA",54599,"4",null,"X","X","X","X"]
[null,"N. DE SANTANDER","SALAZAR",54660,"4",null,"X","X","X","X"]
[null,"N. DE SANTANDER","SAN CALIXTO",54670,"Otros",null,"X","X","X","X"]
[null,"N. DE SANTANDER","SAN CAYETANO",54673,"Otros",null,"X","X","X","X"]
[null,"N. DE SANTANDER","SANTIAGO",54680,"Otros",null,"X","X","X","X"]
[null,"N. DE SANTANDER","SARDINATA",54720,"4",null,"X","X","X","X"]
[null,"N. DE SANTANDER","SILOS",54743,"4",null,"X","X","X","X"]
[null,"N. DE SANTANDER","TEORAMA",54800,"4",null,"X","X","X","X"]
[null,"N. DE SANTANDER","TIBU",54810,"4",null,"X","X","X","X"]
[null,"N. DE SANTANDER","TOLEDO",54820,"4",null,"X","X","X","X"]
[null,"N. DE SANTANDER","VILLA CARO",54871,"4",null,"X","X","X","X"]
[null,"N. DE SANTANDER","VILLA DEL ROSARIO",54874,"Otros",null,"X","X","X","X"]
[null,"QUINDIO","ARMENIA",63001,"1",null,"X","X","X","X"]
[null,"QUINDIO","BUENAVISTA",63111,"4",null,null,"X","X","X"]
[null,"QUINDIO","CALARCA",63130,"2","X","X","X","X","X"]
[null,"QUINDIO","CIRCASIA",63190,"4",null,"X","X","X","X"]
[null,"QUINDIO","CORDOBA",63212,"4",null,"X","X","X","X"]
[null,"QUINDIO","FILANDIA",63272,"4",null,"X","X","X","X"]
[null,"QUINDIO","GENOVA",63302,"Otros",null,"X","X","X","X"]
[null,"QUINDIO","LA TEBAIDA",63401,"3",null,"X","X","X","X"]
[null,"QUINDIO","MONTENEGRO",63470,"Otros","X","X","X","X","X"]
[null,"QUINDIO","PIJAO",63548,"4",null,"X","X","X","X"]
[null,"QUINDIO","QUIMBAYA",63594,"2","X","X","X","X","X"]
[null,"QUINDIO","SALENTO",63690,"4",null,"X","X","X","X"]
[null,"RISARALDA","PEREIRA",66001,"1","X","X","X","X","X"]
[null,"RISARALDA","APIA",66045,"3",null,"X","X","X","X"]
[null,"RISARALDA","BALBOA",66075,"4",null,"X","X","X","X"]
[null,"RISARALDA","BELEN DE UMBRIA",66088,"3",null,"X","X","X","X"]
[null,"RISARALDA","DOSQUEBRADAS",66170,"1","X","X","X","X","X"]
[null,"RISARALDA","GUATICA",66318,"4",null,"X","X","X","X"]
[null,"RISARALDA","LA CELIA",66383,"4",null,"X","X","X","X"]
[null,"RISARALDA","LA VIRGINIA",66400,"Otros",null,"X","X","X","X"]
[null,"RISARALDA","MARSELLA",66440,"Otros",null,"X","X","X","X"]
[null,"RISARALDA","MISTRATO",66456,"4",null,"X","X","X","X"]
[null,"RISARALDA","PUEBLO RICO",66572,"4",null,"X","X","X","X"]
[null,"RISARALDA","QUINCHIA",66594,"Otros",null,"X","X","X","X"]
[null,"RISARALDA","SANTA ROSA DE CABAL",66682,"3",null,"X","X","X","X"]
[null,"RISARALDA","SANTUARIO",66687,"Otros",null,"X","X","X","X"]
[null,"SANTANDER","BUCARAMANGA",68001,"1","X","X","X","X","X"]
[null,"SANTANDER","AGUADA",68013,"Otros",null,"X","X","X","X"]
[null,"SANTANDER","ALBANIA",68020,"Otros",null,"X","X","X","X"]
[null,"SANTANDER","ARATOCA",68051,"4",null,"X","X","X","X"]
[null,"SANTANDER","BARBOSA",68077,"2","X","X","X","X","X"]
[null,"SANTANDER","BARICHARA",68079,"4",null,"X","X","X","X"]
[null,"SANTANDER","BARRANCABERMEJA",68081,"1","X","X","X","X","X"]
[null,"SANTANDER","BETULIA",68092,"4",null,"X","X","X","X"]
[null,"SANTANDER","BOLIVAR",68101,"4",null,"X","X","X","X"]
[null,"SANTANDER","CABRERA",68121,"Otros",null,"X","X","X","X"]
[null,"SANTANDER","CALIFORNIA",68132,"Otros",null,"X","X","X","X"]
[null,"SANTANDER","CAPITANEJO",68147,"4",null,"X","X","X","X"]
[null,"SANTANDER","CARCASI",68152,"4",null,"X","X","X","X"]
[null,"SANTANDER","CEPITA",68160,"Otros",null,"X","X","X","X"]
[null,"SANTANDER","CERRITO",68162,"4",null,"X","X","X","X"]
[null,"SANTANDER","CHARALA",68167,"Otros",null,"X","X","X","X"]
[null,"SANTANDER","CHARTA",68169,"Otros",null,"X","X","X","X"]
[null,"SANTANDER","CHIMA",68176,"4",null,"X","X","X","X"]
[null,"SANTANDER","CHIPATA",68179,"4",null,"X","X","X","X"]
[null,"SANTANDER","CIMITARRA",68190,"3",null,"X","X","X","X"]
[null,"SANTANDER","CONCEPCION",68207,"4",null,"X","X","X","X"]
[null,"SANTANDER","CONFINES",68209,"Otros",null,"X","X","X","X"]
[null,"SANTANDER","CONTRATACION",68211,"4",null,"X","X","X","X"]
[null,"SANTANDER","COROMORO",68217,"4",null,"X","X","X","X"]
[null,"SANTANDER","CURITI",68229,"4",null,"X","X","X","X"]
[null,"SANTANDER","EL CARMEN DE CHUCURI",68235,"4",null,"X","X","X","X"]
[null,"SANTANDER","EL GUACAMAYO",68245,"Otros",null,"X","X","X","X"]
[null,"SANTANDER","EL PEÑON",68250,"Otros",null,"X","X","X","X"]
[null,"SANTANDER","EL PLAYON",68255,"Otros",null,"X","X","X","X"]
[null,"SANTANDER","ENCINO",68264,"Otros",null,"X","X","X","X"]
[null,"SANTANDER","ENCISO",68266,"Otros",null,"X","X","X","X"]
[null,"SANTANDER","FLORIAN",68271,"4",null,"X","X","X","X"]
[null,"SANTANDER","FLORIDABLANCA",68276,"1","X","X","X","X","X"]
[null,"SANTANDER","GALAN",68296,"Otros",null,"X","X","X","X"]
[null,"SANTANDER","GAMBITA",68298,"4",null,"X","X","X","X"]
[null,"SANTANDER","GIRON",68307,"1","X","X","X","X","X"]
[null,"SANTANDER","GUACA",68318,"4",null,"X","X","X","X"]
[null,"SANTANDER","GUADALUPE",68320,"4",null,"X","X","X","X"]
[null,"SANTANDER","GUAPOTA",68322,"Otros",null,"X","X","X"]
[null,"SANTANDER","GUAVATA",68324,"4",null,"X","X","X","X"]
[null,"SANTANDER","GsEPSA",68327,"4",null,"X","X","X","X"]
[null,"SANTANDER","HATO",68344,"Otros",null,"X","X","X","X"]
[null,"SANTANDER","JESUS MARIA",68368,"4",null,"X","X","X","X"]
[null,"SANTANDER","JORDAN",68370,"Otros",null,"X","X","X","X"]
[null,"SANTANDER","LA BELLEZA",68377,"4",null,"X","X","X","X"]
[null,"SANTANDER","LANDAZURI",68385,"4",null,"X","X","X","X"]
[null,"SANTANDER","LA PAZ",68397,"4",null,"X","X","X","X"]
[null,"SANTANDER","LEBRIJA",68406,"3",null,"X","X","X","X"]
[null,"SANTANDER","LOS SANTOS",68418,"4",null,"X","X","X","X"]
[null,"SANTANDER","MACARAVITA",68425,"Otros",null,"X","X","X","X"]
[null,"SANTANDER","MALAGA",68432,"3",null,"X","X","X","X"]
[null,"SANTANDER","MATANZA",68444,"4",null,"X","X","X","X"]
[null,"SANTANDER","MOGOTES",68464,"4",null,"X","X","X","X"]
[null,"SANTANDER","MOLAGAVITA",68468,"4",null,"X","X","X","X"]
[null,"SANTANDER","OCAMONTE",68498,"Otros",null,"X","X","X","X"]
[null,"SANTANDER","OIBA",68500,"Otros",null,"X","X","X","X"]
[null,"SANTANDER","ONZAGA",68502,"4",null,"X","X","X","X"]
[null,"SANTANDER","PALMAR",68522,"Otros",null,"X","X","X","X"]
[null,"SANTANDER","PALMAS DEL SOCORRO",68524,"Otros",null,"X","X","X","X"]
[null,"SANTANDER","PARAMO",68533,"Otros",null,"X","X","X","X"]
[null,"SANTANDER","PIEDECUESTA",68547,"1",null,"X","X","X","X"]
[null,"SANTANDER","PINCHOTE",68549,"Otros",null,"X","X","X","X"]
[null,"SANTANDER","PUENTE NACIONAL",68572,"Otros",null,"X","X","X","X"]
[null,"SANTANDER","PUERTO PARRA",68573,"Otros",null,"X","X","X","X"]
[null,"SANTANDER","PUERTO WILCHES",68575,"3",null,"X","X","X","X"]
[null,"SANTANDER","RIONEGRO",68615,"4",null,"X","X","X","X"]
[null,"SANTANDER","SABANA DE TORRES",68655,"3",null,"X","X","X","X"]
[null,"SANTANDER","SAN ANDRES",68669,"4",null,"X","X","X","X"]
[null,"SANTANDER","SAN BENITO",68673,"Otros",null,"X","X","X","X"]
[null,"SANTANDER","SAN GIL",68679,"1","X","X","X","X","X"]
[null,"SANTANDER","SAN JOAQUIN",68682,"Otros",null,"X","X","X","X"]
[null,"SANTANDER","SAN JOSE DE MIRANDA",68684,"Otros",null,"X","X","X","X"]
[null,"SANTANDER","SAN MIGUEL",68686,"Otros",null,"X","X","X","X"]
[null,"SANTANDER","SAN VICENTE DE CHUCURI",68689,"3",null,"X","X","X","X"]
[null,"SANTANDER","SANTA BARBARA",68705,"Otros",null,"X","X","X","X"]
[null,"SANTANDER","SANTA HELENA DEL OPON",68720,"Otros",null,"X","X","X","X"]
[null,"SANTANDER","SIMACOTA",68745,"4",null,"X","X","X","X"]
[null,"SANTANDER","SOCORRO",68755,"3","X","X","X","X","X"]
[null,"SANTANDER","SUAITA",68770,"Otros",null,"X","X","X","X"]
[null,"SANTANDER","SUCRE",68773,"4",null,"X","X","X","X"]
[null,"SANTANDER","SURATA",68780,"4",null,"X","X","X","X"]
[null,"SANTANDER","TONA",68820,"4",null,"X","X","X","X"]
[null,"SANTANDER","VALLE DE SAN JOSE",68855,"Otros",null,"X","X","X","X"]
[null,"SANTANDER","VELEZ",68861,"3",null,"X","X","X","X"]
[null,"SANTANDER","VETAS",68867,"4",null,"X","X","X","X"]
[null,"SANTANDER","VILLANUEVA",68872,"4",null,"X","X","X","X"]
[null,"SANTANDER","ZAPATOCA",68895,"3",null,"X","X","X","X"]
[null,"SUCRE","SINCELEJO",70001,"1","X","X","X","X","X"]
[null,"SUCRE","BUENAVISTA",70110,"4",null,"X","X","X","X"]
[null,"SUCRE","CAIMITO",70124,"4",null,"X","X","X","X"]
[null,"SUCRE","COLOSO",70204,"Otros",null,"X","X","X","X"]
[null,"SUCRE","COROZAL",70215,"3",null,"X","X","X","X"]
[null,"SUCRE","COVEÑAS",70221,"Otros",null,"X","X","X","X"]
[null,"SUCRE","CHALAN",70230,"Otros",null,"X","X","X"]
[null,"SUCRE","EL ROBLE",70233,"Otros",null,"X","X","X"]
[null,"SUCRE","GALERAS",70235,"4",null,"X","X","X","X"]
[null,"SUCRE","GUARANDA",70265,"4",null,"X","X","X","X"]
[null,"SUCRE","LA UNION",70400,"3",null,"X","X","X","X"]
[null,"SUCRE","LOS PALMITOS",70418,"4",null,"X","X","X","X"]
[null,"SUCRE","MAJAGUAL",70429,"4",null,"X","X","X","X"]
[null,"SUCRE","MORROA",70473,"Otros",null,"X","X","X","X"]
[null,"SUCRE","OVEJAS",70508,"4",null,"X","X","X","X"]
[null,"SUCRE","PALMITO",70523,"Otros",null,"X","X","X"]
[null,"SUCRE","SAMPUES",70670,"4",null,"X","X","X","X"]
[null,"SUCRE","SAN BENITO ABAD",70678,"4",null,"X","X","X","X"]
[null,"SUCRE","SAN JUAN DE BETULIA",70702,"Otros",null,"X","X","X","X"]
[null,"SUCRE","SAN MARCOS",70708,"3",null,"X","X","X","X"]
[null,"SUCRE","SAN ONOFRE",70713,"4",null,"X","X","X","X"]
[null,"SUCRE","SAN PEDRO",70717,"4",null,"X","X","X","X"]
[null,"SUCRE","SAN LUIS DE SINCE",70742,"3",null,"X","X","X","X"]
[null,"SUCRE","SUCRE",70771,"4",null,"X","X","X","X"]
[null,"SUCRE","SANTIAGO DE TOLU",70820,"3",null,"X","X","X","X"]
[null,"SUCRE","TOLU VIEJO",70823,"4",null,"X","X","X","X"]
[null,"TOLIMA","IBAGUE",73001,"1","X","X","X","X","X"]
[null,"TOLIMA","ALPUJARRA",73024,"4",null,"X","X","X","X"]
[null,"TOLIMA","ALVARADO",73026,"4",null,"X","X","X","X"]
[null,"TOLIMA","AMBALEMA",73030,"Otros",null,"X","X","X","X"]
[null,"TOLIMA","ANZOATEGUI",73043,"4",null,"X","X","X","X"]
[null,"TOLIMA","ARMERO",73055,"4",null,"X","X","X","X"]
[null,"TOLIMA","ATACO",73067,"4",null,"X","X","X","X"]
[null,"TOLIMA","CAJAMARCA",73124,"3",null,"X","X","X","X"]
[null,"TOLIMA","CARMEN DE APICALA",73148,"4",null,"X","X","X","X"]
[null,"TOLIMA","CASABIANCA",73152,"4",null,"X","X","X","X"]
[null,"TOLIMA","CHAPARRAL",73168,"3","X","X","X","X","X"]
[null,"TOLIMA","COELLO",73200,"4",null,"X","X","X","X"]
[null,"TOLIMA","COYAIMA",73217,"4",null,"X","X","X","X"]
[null,"TOLIMA","CUNDAY",73226,"4",null,"X","X","X","X"]
[null,"TOLIMA","DOLORES",73236,"4",null,"X","X","X","X"]
[null,"TOLIMA","ESPINAL",73268,"1","X","X","X","X","X"]
[null,"TOLIMA","FALAN",73270,"4",null,"X","X","X","X"]
[null,"TOLIMA","FLANDES",73275,"Otros",null,"X","X","X","X"]
[null,"TOLIMA","FRESNO",73283,"3",null,"X","X","X","X"]
[null,"TOLIMA","GUAMO",73319,"3","X","X","X","X","X"]
[null,"TOLIMA","HERVEO",73347,"4",null,"X","X","X","X"]
[null,"TOLIMA","HONDA",73349,"Otros","X","X","X","X","X"]
[null,"TOLIMA","ICONONZO",73352,"4",null,"X","X","X","X"]
[null,"TOLIMA","LERIDA",73408,"Otros","X","X","X","X","X"]
[null,"TOLIMA","LIBANO",73411,"3","X","X","X","X","X"]
[null,"TOLIMA","MARIQUITA",73443,"Otros","X","X","X","X","X"]
[null,"TOLIMA","MELGAR",73449,"Otros","X","X","X","X","X"]
[null,"TOLIMA","MURILLO",73461,"4",null,"X","X","X","X"]
[null,"TOLIMA","NATAGAIMA",73483,"3",null,"X","X","X","X"]
[null,"TOLIMA","ORTEGA",73504,"3",null,"X","X","X","X"]
[null,"TOLIMA","PALOCABILDO",73520,"4",null,"X","X","X","X"]
[null,"TOLIMA","PIEDRAS",73547,"4",null,"X","X","X","X"]
[null,"TOLIMA","PLANADAS",73555,"3",null,"X","X","X","X"]
[null,"TOLIMA","PRADO",73563,"4",null,"X","X","X","X"]
[null,"TOLIMA","PURIFICACION",73585,"3",null,"X","X","X","X"]
[null,"TOLIMA","RIOBLANCO",73616,"4",null,"X","X","X","X"]
[null,"TOLIMA","RONCESVALLES",73622,"4",null,"X","X","X","X"]
[null,"TOLIMA","ROVIRA",73624,"4",null,"X","X","X","X"]
[null,"TOLIMA","SALDAÑA",73671,"3",null,"X","X","X","X"]
[null,"TOLIMA","SAN ANTONIO",73675,"4",null,"X","X","X","X"]
[null,"TOLIMA","SAN LUIS",73678,"4",null,"X","X","X","X"]
[null,"TOLIMA","SANTA ISABEL",73686,"4",null,"X","X","X","X"]
[null,"TOLIMA","SUAREZ",73770,"4",null,"X","X","X","X"]
[null,"TOLIMA","VALLE DE SAN JUAN",73854,"4",null,"X","X","X","X"]
[null,"TOLIMA","VENADILLO",73861,"4",null,"X","X","X","X"]
[null,"TOLIMA","VILLAHERMOSA",73870,"4",null,"X","X","X","X"]
[null,"TOLIMA","VILLARRICA",73873,"4",null,"X","X","X","X"]
[null,"VALLE DEL CAUCA","CALI",76001,"1","X","X","X","X","X"]
[null,"VALLE DEL CAUCA","ALCALA",76020,"4",null,"X","X","X","X"]
[null,"VALLE DEL CAUCA","ANDALUCIA",76036,"Otros",null,"X","X","X","X"]
[null,"VALLE DEL CAUCA","ANSERMANUEVO",76041,"4",null,"X","X","X","X"]
[null,"VALLE DEL CAUCA","ARGELIA",76054,"Otros",null,"X","X","X","X"]
[null,"VALLE DEL CAUCA","BOLIVAR",76100,"3",null,"X","X","X","X"]
[null,"VALLE DEL CAUCA","BUENAVENTURA",76109,"1","X","X","X","X","X"]
[null,"VALLE DEL CAUCA","GUADALAJARA DE BUGA",76111,"1","X","X","X","X","X"]
[null,"VALLE DEL CAUCA","BUGALAGRANDE",76113,"Otros",null,"X","X","X","X"]
[null,"VALLE DEL CAUCA","CAICEDONIA",76122,"Otros",null,"X","X","X","X"]
[null,"VALLE DEL CAUCA","CALIMA",76126,"4",null,"X","X","X","X"]
[null,"VALLE DEL CAUCA","CANDELARIA",76130,"2",null,"X","X","X","X"]
[null,"VALLE DEL CAUCA","CARTAGO",76147,"1","X","X","X","X","X"]
[null,"VALLE DEL CAUCA","DAGUA",76233,"4",null,"X","X","X","X"]
[null,"VALLE DEL CAUCA","EL AGUILA",76243,"4",null,"X","X","X","X"]
[null,"VALLE DEL CAUCA","EL CAIRO",76246,"Otros",null,"X","X","X","X"]
[null,"VALLE DEL CAUCA","EL CERRITO",76248,"2",null,"X","X","X","X"]
[null,"VALLE DEL CAUCA","EL DOVIO",76250,"Otros",null,"X","X","X","X"]
[null,"VALLE DEL CAUCA","FLORIDA",76275,"3","X","X","X","X","X"]
[null,"VALLE DEL CAUCA","GINEBRA",76306,"Otros",null,"X","X","X","X"]
[null,"VALLE DEL CAUCA","GUACARI",76318,"3",null,"X","X","X","X"]
[null,"VALLE DEL CAUCA","JAMUNDI",76364,"Otros","X","X","X","X","X"]
[null,"VALLE DEL CAUCA","LA CUMBRE",76377,"4",null,"X","X","X","X"]
[null,"VALLE DEL CAUCA","LA UNION",76400,"Otros",null,"X","X","X","X"]
[null,"VALLE DEL CAUCA","LA VICTORIA",76403,"Otros",null,"X","X","X","X"]
[null,"VALLE DEL CAUCA","OBANDO",76497,"Otros",null,"X","X","X","X"]
[null,"VALLE DEL CAUCA","PALMIRA",76520,"1","X","X","X","X","X"]
[null,"VALLE DEL CAUCA","PRADERA",76563,"3",null,"X","X","X","X"]
[null,"VALLE DEL CAUCA","RESTREPO",76606,"Otros",null,"X","X","X","X"]
[null,"VALLE DEL CAUCA","RIOFRIO",76616,"4",null,"X","X","X","X"]
[null,"VALLE DEL CAUCA","ROLDANILLO",76622,"2",null,"X","X","X","X"]
[null,"VALLE DEL CAUCA","SAN PEDRO",76670,"Otros",null,"X","X","X","X"]
[null,"VALLE DEL CAUCA","SEVILLA",76736,"3",null,"X","X","X","X"]
[null,"VALLE DEL CAUCA","TORO",76823,"4",null,"X","X","X","X"]
[null,"VALLE DEL CAUCA","TRUJILLO",76828,"4",null,"X","X","X","X"]
[null,"VALLE DEL CAUCA","TULUA",76834,"1","X","X","X","X","X"]
[null,"VALLE DEL CAUCA","ULLOA",76845,"4",null,"X","X","X","X"]
[null,"VALLE DEL CAUCA","VERSALLES",76863,"Otros",null,"X","X","X","X"]
[null,"VALLE DEL CAUCA","VIJES",76869,"Otros",null,"X","X","X","X"]
[null,"VALLE DEL CAUCA","YOTOCO",76890,"Otros",null,"X","X","X","X"]
[null,"VALLE DEL CAUCA","YUMBO",76892,"Otros","X","X","X","X","X"]
[null,"VALLE DEL CAUCA","ZARZAL",76895,"2","X","X","X","X","X"]
[null,"ARAUCA","ARAUCA",81001,"3","X","X","X","X","X"]
[null,"ARAUCA","ARAUQUITA",81065,"3",null,"X","X","X","X"]
[null,"ARAUCA","CRAVO NORTE",81220,"4",null,"X","X","X","X"]
[null,"ARAUCA","FORTUL",81300,"4",null,"X","X","X","X"]
[null,"ARAUCA","PUERTO RONDON",81591,"4",null,"X","X","X","X"]
[null,"ARAUCA","SARAVENA",81736,"3",null,"X","X","X","X"]
[null,"ARAUCA","TAME",81794,"3",null,"X","X","X","X"]
[null,"CASANARE","YOPAL",85001,"1","X","X","X","X","X"]
[null,"CASANARE","AGUAZUL",85010,"Otros",null,"X","X","X","X"]
[null,"CASANARE","CHAMEZA",85015,"Otros",null,"X","X","X","X"]
[null,"CASANARE","HATO COROZAL",85125,"4",null,"X","X","X","X"]
[null,"CASANARE","LA SALINA",85136,"Otros",null,"X","X","X"]
[null,"CASANARE","MANI",85139,"2",null,"X","X","X","X"]
[null,"CASANARE","MONTERREY",85162,"3",null,"X","X","X","X"]
[null,"CASANARE","NUNCHIA",85225,"4",null,"X","X","X","X"]
[null,"CASANARE","OROCUE",85230,"3",null,"X","X","X","X"]
[null,"CASANARE","PAZ DE ARIPORO",85250,"3",null,"X","X","X","X"]
[null,"CASANARE","PORE",85263,"4",null,"X","X","X","X"]
[null,"CASANARE","RECETOR",85279,"Otros",null,"X","X","X","X"]
[null,"CASANARE","SABANALARGA",85300,"4",null,"X","X","X","X"]
[null,"CASANARE","SACAMA",85315,"Otros",null,"X","X","X"]
[null,"CASANARE","SAN LUIS DE PALENQUE",85325,"4",null,"X","X","X","X"]
[null,"CASANARE","TAMARA",85400,"4",null,"X","X","X","X"]
[null,"CASANARE","TAURAMENA",85410,"4",null,"X","X","X","X"]
[null,"CASANARE","TRINIDAD",85430,"4",null,"X","X","X","X"]
[null,"CASANARE","VILLANUEVA",85440,"3",null,"X","X","X","X"]
[null,"PUTUMAYO","MOCOA",86001,"3","X","X","X","X","X"]
[null,"PUTUMAYO","COLON",86219,"Otros",null,"X","X","X"]
[null,"PUTUMAYO","ORITO",86320,"3",null,"X","X","X","X"]
[null,"PUTUMAYO","PUERTO ASIS",86568,"3",null,"X","X","X","X"]
[null,"PUTUMAYO","PUERTO CAICEDO",86569,"Otros",null,"X","X","X","X"]
[null,"PUTUMAYO","PUERTO GUZMAN",86571,"4",null,"X","X","X","X"]
[null,"PUTUMAYO","LEGUIZAMO",86573,"3",null,"X","X","X","X"]
[null,"PUTUMAYO","SIBUNDOY",86749,"3",null,"X","X","X","X"]
[null,"PUTUMAYO","SAN FRANCISCO",86755,"Otros",null,"X","X","X"]
[null,"PUTUMAYO","SAN MIGUEL",86757,"4",null,"X","X","X","X"]
[null,"PUTUMAYO","SANTIAGO",86760,"Otros",null,"X","X","X"]
[null,"PUTUMAYO","VALLE DEL GUAMUEZ",86865,"4",null,"X","X","X","X"]
[null,"PUTUMAYO","VILLAGARZON",86885,"3",null,"X","X","X","X"]
[null,"SAN ANDRES","SAN ANDRES",88001,"4","X","X","X","X","X"]
[null,"SAN ANDRES","PROVIDENCIA",88564,"4",null,"X","X","X","X"]
[null,"AMAZONAS","LETICIA",91001,"1","X","X","X","X","X"]
[null,"AMAZONAS","EL ENCANTO",91263,"Otros",null,null,null,"X"]
[null,"AMAZONAS","LA CHORRERA",91405,"Otros",null,null,null,"X"]
[null,"AMAZONAS","LA PEDRERA",91407,"Otros",null,null,null,"X"]
[null,"AMAZONAS","LA VICTORIA",91430,"Otros",null,null,null,"X"]
[null,"AMAZONAS","MIRITI - PARANA",91460,"Otros",null,null,null,"X"]
[null,"AMAZONAS","PUERTO ALEGRIA",91530,"Otros",null,null,null,"X"]
[null,"AMAZONAS","PUERTO ARICA",91536,"Otros",null,null,null,"X"]
[null,"AMAZONAS","PUERTO NARIÑO",91540,"Otros",null,"X","X","X","X"]
[null,"AMAZONAS","PUERTO SANTANDER",91669,"Otros",null,null,null,"X"]
[null,"AMAZONAS","TARAPACA",91798,"Otros",null,null,null,"X"]
[null,"GUAINIA","INIRIDA",94001,"3",null,"X","X","X","X"]
[null,"GUAINIA","BARRANCO MINAS",94343,"Otros",null,null,"X","X"]
[null,"GUAINIA","MAPIRIPANA",94663,"Otros",null,null,"X","X"]
[null,"GUAINIA","SAN FELIPE",94883,"Otros",null,null,"X","X"]
[null,"GUAINIA","PUERTO COLOMBIA",94884,"Otros",null,null,"X","X"]
[null,"GUAINIA","LA GUADALUPE",94885,"Otros",null,null,"X","X"]
[null,"GUAINIA","CACAHUAL",94886,"Otros",null,null,"X","X"]
[null,"GUAINIA","PANA PANA",94887,"Otros",null,null,"X","X"]
[null,"GUAINIA","MORICHAL",94888,"Otros",null,null,"X","X"]
[null,"GUAVIARE","SAN JOSE DEL GUAVIARE",95001,"3",null,"X","X","X","X"]
[null,"GUAVIARE","CALAMAR",95015,"Otros",null,"X","X","X","X"]
[null,"GUAVIARE","EL RETORNO",95025,"Otros",null,"X","X","X"]
[null,"GUAVIARE","MIRAFLORES",95200,"4",null,null,"X","X"]
[null,"VAUPES","MITU",97001,"3",null,"X","X","X","X"]
[null,"VAUPES","CARURU",97161,"Otros",null,null,"X","X","X"]
[null,"VAUPES","PACOA",97511,"Otros",null,null,"X","X"]
[null,"VAUPES","TARAIRA",97666,"Otros",null,null,"X","X"]
[null,"VAUPES","PAPUNAUA",97777,"Otros",null,null,"X","X"]
[null,"VAUPES","YAVARATE",97889,"Otros",null,null,"X","X"]
[null,"VICHADA","PUERTO CARREÑO",99001,"3","X","X","X","X","X"]
[null,"VICHADA","LA PRIMAVERA",99524,"4",null,"X","X","X","X"]
[null,"VICHADA","SANTA ROSALIA",99624,"4",null,"X","X","X","X"]
[null,"VICHADA","CUMARIBO",99773,"4",null,"X","X","X","X"]

{"sheet":"CSV","index":5,"n_rows":4,"n_cols":8,"rows_kept":4,"cut":false,"hidden":true,"merged":[]}
["Tipo (servicio o artÃ­culo)","Cantidad","CÃ³digo de unidad de medida*","PosiciÃ³n","Precio base","Divisa","DescripciÃ³n","MercancÃ­a"]
["item",100000,"Und",null,"\"0\"","COP","SF Tipo 4 - 5002 - ABEJORRAL - Beneficiarios: 500"]
["item",1,"Und",null,"\"0\"","COP","Total Servicios Adicionales"]
["item",1,"Und",null,"\"0\"","COP","IVA"]